Workbook

Sheet Умная Т (hidden)
C1: Калужская область | D1: =SUM(Таблица1[Оплачено случаев]) -> 25846 | F1: =SUM(Таблица1[План ДВН, чел.]) -> 16343 | I1: Выполнение плана, % | J1: =ROUND(D1/F1,3) -> 1.581 | P1: =(K24+P24+U24+Z24+AE24+AJ24+AO24+AT24+AY24+BD24+BI24+BN24)/(J24+O24+BM24+BH24+BC24+AX24+AS24+AN24+AI24+AD24+Y24+T24)*1000 -> 1526.588919
C2: Средний тариф ДВН | D2: =P1 -> 1526.588919 | K2: ФАКТ | L2: ПЛАН | O2: ФАКТ | Q2: ПЛАН | T2: ФАКТ | V2: ПЛАН | Y2: ФАКТ | AA2: ПЛАН | AD2: ФАКТ | AF2: ПЛАН | AI2: ФАКТ | AK2: ПЛАН | AN2: ФАКТ | AP2: ПЛАН | AS2: ФАКТ | AU2: ПЛАН | AX2: ФАКТ | AZ2: ПЛАН | BC2: ФАКТ | BE2: ПЛАН | BH2: ФАКТ | BJ2: ПЛАН | BM2: ФАКТ | BO2: ПЛАН
A3: Месяц | B3: Вид | C3: Наименование медицинской организации | D3: Оплачено случаев | E3: Оплачено сумма, тыс.руб. | F3: План ДВН, чел. | G3: Отклонение | H3: % выполнения | J3: 1мес | K3: январь | L3: январь | M3: 2 мес | O3: Февраль | Q3: Февраль | R3: 3 мес | T3: Март | V3: Март | W3: 4 мес | Y3: Апрель | AA3: Апрель | AB3: 5 мес | AD3: Май | AF3: Май | AG3: 6 мес | AI3: Июнь | AK3: Июнь | AL3: 7 мес | AN3: Июль | AP3: Июль | AQ3: 8 мес | AS3: Август | AU3: Август | AV3: 9 мес | AX3: Сентябрь | AZ3: Сентябрь | BA3: 10 мес | BC3: Октябрь | BE3: Октябрь | BF3: 11 мес | BH3: Ноябрь | BJ3: Ноябрь | BK3: 12 мес | BM3: Декабрь | BO3: Декабрь
A4: Январь | B4: ДВН | C4: ЦМБ № 1 | D4: =J4 -> 124 | E4: =K4 -> 206.6413 | F4: =L4 -> 110 | G4: =Таблица1[[#This Row],[Оплачено случаев]]-Таблица1[[#This Row],[План ДВН, чел.]] -> 14 | H4: =ROUND(Таблица1[[#This Row],[Оплачено случаев]]/Таблица1[[#This Row],[План ДВН, чел.]]*100,1) -> 112.7 | J4: 124 | K4: 206.6413 | L4: 110 | M4: =J4+O4 -> 434 | N4: =K4+P4 -> 744.47872 | O4: 310 | P4: 537.83742 | Q4: 242 | R4: =M4+T4 -> 744 | S4: =N4+U4 -> 1238.8302 | T4: 310 | U4: 494.35148 | V4: 277 | W4: =R4+Y4 -> 744 | X4: =S4+Z4 -> 1238.8302 | AB4: =W4+AD4 -> 744 | AC4: =X4+AE4 -> 1238.8302 | AG4: =AB4+AI4 -> 744 | AH4: =AC4+AJ4 -> 1238.8302 | AL4: =AG4+AN4 -> 744 | AM4: =AH4+AO4 -> 1238.8302 | AQ4: =AL4+AS4 -> 744 | AR4: =AM4+AT4 -> 1238.8302 | AV4: =AQ4+AX4 -> 744 | AW4: =AR4+AY4 -> 1238.8302 | BA4: =AV4+BC4 -> 744 | BB4: =AW4+BD4 -> 1238.8302 | BF4: =BA4+BH4 -> 744 | BG4: =BB4+BI4 -> 1238.8302 | BK4: =BM4+BF4 -> 744 | BL4: =BG4+BN4 -> 1238.8302 | BP4: =BJ4+BE4+AZ4+AU4+AP4+AK4+AF4++AA4+V4+Q4+L4 -> 629
A5: Январь | B5: ДВН | C5: ЦМБ № 2 | D5: =J5 -> 814 | E5: =K5 -> 1518.67436 | F5: =L5 -> 327 | G5: =Таблица1[[#This Row],[Оплачено случаев]]-Таблица1[[#This Row],[План ДВН, чел.]] -> 487 | H5: =ROUND(Таблица1[[#This Row],[Оплачено случаев]]/Таблица1[[#This Row],[План ДВН, чел.]]*100,1) -> 248.9 | J5: 814 | K5: 1518.67436 | L5: 327 | M5: =J5+O5 -> 1706 | N5: 3183.02148 | O5: 892 | P5: 1664.34712 | Q5: 541 | R5: =M5+T5 -> 1727 | S5: =N5+U5 -> 3210.82296 | T5: 21 | U5: 27.80148 | V5: 541 | W5: =R5+Y5 -> 1727 | X5: =S5+Z5 -> 3210.82296 | AB5: =W5+AD5 -> 1727 | AC5: =X5+AE5 -> 3210.82296 | AG5: =AB5+AI5 -> 1727 | AH5: =AC5+AJ5 -> 3210.82296 | AL5: =AG5+AN5 -> 1727 | AM5: =AH5+AO5 -> 3210.82296 | AQ5: =AL5+AS5 -> 1727 | AR5: =AM5+AT5 -> 3210.82296 | AV5: =AQ5+AX5 -> 1727 | AW5: =AR5+AY5 -> 3210.82296 | BA5: =AV5+BC5 -> 1727 | BB5: =AW5+BD5 -> 3210.82296 | BF5: =BA5+BH5 -> 1727 | BG5: =BB5+BI5 -> 3210.82296 | BK5: =BM5+BF5 -> 1727 | BL5: =BG5+BN5 -> 3210.82296 | BP5: =BJ5+BE5+AZ5+AU5+AP5+AK5+AF5++AA5+V5+Q5+L5 -> 1409
A6: Январь | B6: ДВН | C6: ЦМБ № 3 | D6: 319 | E6: 436.834 | F6: 80 | G6: =Таблица1[[#This Row],[Оплачено случаев]]-Таблица1[[#This Row],[План ДВН, чел.]] -> 239 | H6: =ROUND(Таблица1[[#This Row],[Оплачено случаев]]/Таблица1[[#This Row],[План ДВН, чел.]]*100,1) -> 398.8 | J6: 319 | K6: 436.834 | L6: 80 | M6: 617 | N6: 840.09642 | O6: 298 | P6: 403.26242 | Q6: 80 | R6: 777 | S6: 1055.85194 | T6: 160 | U6: 215.75552 | V6: 131 | W6: 777 | X6: 1055.85194 | AB6: 777 | AC6: 1055.85194 | AG6: 777 | AH6: 1055.85194 | AL6: 777 | AM6: 1055.85194 | AQ6: 777 | AR6: 1055.85194 | AV6: 777 | AW6: 1055.85194 | BA6: 777 | BB6: 1055.85194 | BF6: 777 | BG6: 1055.85194 | BK6: 777 | BL6: 1055.85194 | BP6: 291
A7: Январь | B7: ДВН | C7: ЦМБ № 4 | D7: 151 | E7: 210.81924 | F7: 78 | G7: =Таблица1[[#This Row],[Оплачено случаев]]-Таблица1[[#This Row],[План ДВН, чел.]] -> 73 | H7: =ROUND(Таблица1[[#This Row],[Оплачено случаев]]/Таблица1[[#This Row],[План ДВН, чел.]]*100,1) -> 193.6 | J7: 151 | K7: 210.81924 | L7: 78 | M7: 259 | N7: 380.56104 | O7: 108 | P7: 169.7418 | Q7: 124 | R7: 396 | S7: 592.42212 | T7: 137 | U7: 211.86108 | V7: 125 | W7: 396 | X7: 592.42212 | AB7: 396 | AC7: 592.42212 | AG7: 396 | AH7: 592.42212 | AL7: 396 | AM7: 592.42212 | AQ7: 396 | AR7: 592.42212 | AV7: 396 | AW7: 592.42212 | BA7: 396 | BB7: 592.42212 | BF7: 396 | BG7: 592.42212 | BK7: 396 | BL7: 592.42212 | BP7: 327
A8: Январь | B8: ДВН | C8: ЦМБ № 5 | D8: 33 | E8: 57.23754 | F8: 113 | G8: =Таблица1[[#This Row],[Оплачено случаев]]-Таблица1[[#This Row],[План ДВН, чел.]] -> -80 | H8: =ROUND(Таблица1[[#This Row],[Оплачено случаев]]/Таблица1[[#This Row],[План ДВН, чел.]]*100,1) -> 29.2 | J8: 33 | K8: 57.23754 | L8: 113 | M8: 468 | N8: 811.97874 | O8: 435 | P8: 754.7412 | Q8: 228 | R8: 714 | S8: 1145.86186 | T8: 246 | U8: 333.88312 | V8: 246 | W8: 714 | X8: 1145.86186 | AB8: 714 | AC8: 1145.86186 | AG8: 714 | AH8: 1145.86186 | AL8: 714 | AM8: 1145.86186 | AQ8: 714 | AR8: 1145.86186 | AV8: 714 | AW8: 1145.86186 | BA8: 714 | BB8: 1145.86186 | BF8: 714 | BG8: 1145.86186 | BK8: 714 | BL8: 1145.86186 | BP8: 587
A9: Январь | B9: ДВН | C9: ЦМБ № 6 | D9: 569 | E9: 886.71668 | F9: 375 | G9: =Таблица1[[#This Row],[Оплачено случаев]]-Таблица1[[#This Row],[План ДВН, чел.]] -> 194 | H9: =ROUND(Таблица1[[#This Row],[Оплачено случаев]]/Таблица1[[#This Row],[План ДВН, чел.]]*100,1) -> 151.7 | J9: 569 | K9: 886.71668 | L9: 375 | M9: 1998 | N9: 3148.52136 | O9: 1429 | P9: 2261.80468 | Q9: 500 | R9: 3300 | S9: 5175.80036 | T9: 1302 | U9: 2027.279 | V9: 500 | W9: 3300 | X9: 5175.80036 | AB9: 3300 | AC9: 5175.80036 | AG9: 3300 | AH9: 5175.80036 | AL9: 3300 | AM9: 5175.80036 | AQ9: 3300 | AR9: 5175.80036 | AV9: 3300 | AW9: 5175.80036 | BA9: 3300 | BB9: 5175.80036 | BF9: 3300 | BG9: 5175.80036 | BK9: 3300 | BL9: 5175.80036 | BP9: 1375
A10: Январь | B10: ДВН | C10: КГБ № 5 | D10: 1370 | E10: 2123.19382 | F10: 395 | G10: =Таблица1[[#This Row],[Оплачено случаев]]-Таблица1[[#This Row],[План ДВН, чел.]] -> 975 | H10: =ROUND(Таблица1[[#This Row],[Оплачено случаев]]/Таблица1[[#This Row],[План ДВН, чел.]]*100,1) -> 346.8 | J10: 1370 | K10: 2123.19382 | L10: 395 | M10: 2739 | N10: 4294.57192 | O10: 1369 | P10: 2171.3781 | Q10: 1350 | R10: 4144 | S10: 6491.7366 | T10: 1405 | U10: 2197.16468 | V10: 1350 | W10: 4144 | X10: 6491.7366 | AB10: 4144 | AC10: 6491.7366 | AG10: 4144 | AH10: 6491.7366 | AL10: 4144 | AM10: 6491.7366 | AQ10: 4144 | AR10: 6491.7366 | AV10: 4144 | AW10: 6491.7366 | BA10: 4144 | BB10: 6491.7366 | BF10: 4144 | BG10: 6491.7366 | BK10: 4144 | BL10: 6491.7366 | BP10: 3095
A11: Январь | B11: ДВН | C11: КГКБ № 4 | D11: 917 | E11: 1351.32464 | F11: 745 | G11: =Таблица1[[#This Row],[Оплачено случаев]]-Таблица1[[#This Row],[План ДВН, чел.]] -> 172 | H11: =ROUND(Таблица1[[#This Row],[Оплачено случаев]]/Таблица1[[#This Row],[План ДВН, чел.]]*100,1) -> 123.1 | J11: 917 | K11: 1351.32464 | L11: 745 | M11: 1891 | N11: 2821.4084 | O11: 974 | P11: 1470.08376 | Q11: 745 | R11: 2871 | S11: 4148.59182 | T11: 980 | U11: 1327.18342 | V11: 745 | W11: 2871 | X11: 4148.59182 | AB11: 2871 | AC11: 4148.59182 | AG11: 2871 | AH11: 4148.59182 | AL11: 2871 | AM11: 4148.59182 | AQ11: 2871 | AR11: 4148.59182 | AV11: 2871 | AW11: 4148.59182 | BA11: 2871 | BB11: 4148.59182 | BF11: 2871 | BG11: 4148.59182 | BK11: 2871 | BL11: 4148.59182 | BP11: 2235
A12: Январь | B12: ДВН | C12: Городская поликлиника | D12: 1299 | E12: 1795.7885 | F12: 606 | G12: =Таблица1[[#This Row],[Оплачено случаев]]-Таблица1[[#This Row],[План ДВН, чел.]] -> 693 | H12: =ROUND(Таблица1[[#This Row],[Оплачено случаев]]/Таблица1[[#This Row],[План ДВН, чел.]]*100,1) -> 214.4 | J12: 1299 | K12: 1795.7885 | L12: 606 | M12: 3153 | N12: 4329.82058 | O12: 1854 | P12: 2534.03208 | Q12: 630 | R12: 4491 | S12: 6153.33284 | T12: 1338 | U12: 1823.51226 | V12: 630 | W12: 4491 | X12: 6153.33284 | AB12: 4491 | AC12: 6153.33284 | AG12: 4491 | AH12: 6153.33284 | AL12: 4491 | AM12: 6153.33284 | AQ12: 4491 | AR12: 6153.33284 | AV12: 4491 | AW12: 6153.33284 | BA12: 4491 | BB12: 6153.33284 | BF12: 4491 | BG12: 6153.33284 | BK12: 4491 | BL12: 6153.33284 | BP12: 1866
A13: Январь | B13: ДВН | C13: МСЧ № 1 г. Калуги | D13: 0 | E13: 0 | F13: 0 | G13: =Таблица1[[#This Row],[Оплачено случаев]]-Таблица1[[#This Row],[План ДВН, чел.]] -> 0 | H13: =ROUND(Таблица1[[#This Row],[Оплачено случаев]]/Таблица1[[#This Row],[План ДВН, чел.]]*100,1) ->  | K13: 0 | L13: 0 | M13: 79 | N13: 110.89416 | O13: 79 | P13: 110.89416 | Q13: 3 | R13: 144 | S13: 201.35596 | T13: 65 | U13: 90.4618 | V13: 10 | W13: 144 | X13: 201.35596 | AB13: 144 | AC13: 201.35596 | AG13: 144 | AH13: 201.35596 | AL13: 144 | AM13: 201.35596 | AQ13: 144 | AR13: 201.35596 | AV13: 144 | AW13: 201.35596 | BA13: 144 | BB13: 201.35596 | BF13: 144 | BG13: 201.35596 | BK13: 144 | BL13: 201.35596 | BP13: 13
A14: Январь | B14: ДВН | C14: МСЧ № 2 г. Калуги | D14: 0 | E14: 0 | F14: 0 | G14: =Таблица1[[#This Row],[Оплачено случаев]]-Таблица1[[#This Row],[План ДВН, чел.]] -> 0 | H14: =ROUND(Таблица1[[#This Row],[Оплачено случаев]]/Таблица1[[#This Row],[План ДВН, чел.]]*100,1) ->  | K14: 0 | L14: 0 | M14: 0 | N14: 0 | P14: 0 | Q14: 0 | R14: 0 | S14: 0 | U14: 0 | V14: 1 | W14: 0 | X14: 0 | AB14: 0 | AC14: 0 | AG14: 0 | AH14: 0 | AL14: 0 | AM14: 0 | AQ14: 0 | AR14: 0 | AV14: 0 | AW14: 0 | BA14: 0 | BB14: 0 | BF14: 0 | BG14: 0 | BK14: 0 | BL14: 0 | BP14: 1
A15: Январь | B15: ДВН | C15: МСЧ МВД | D15: 0 | E15: 0 | F15: 0 | G15: =Таблица1[[#This Row],[Оплачено случаев]]-Таблица1[[#This Row],[План ДВН, чел.]] -> 0 | H15: =ROUND(Таблица1[[#This Row],[Оплачено случаев]]/Таблица1[[#This Row],[План ДВН, чел.]]*100,1) ->  | K15: 0 | L15: 0 | M15: 0 | N15: 0 | P15: 0 | R15: 0 | S15: 0 | U15: 0 | W15: 0 | X15: 0 | AB15: 0 | AC15: 0 | AG15: 0 | AH15: 0 | AL15: 0 | AM15: 0 | AQ15: 0 | AR15: 0 | AV15: 0 | AW15: 0 | BA15: 0 | BB15: 0 | BF15: 0 | BG15: 0 | BK15: 0 | BL15: 0 | BP15: 0
A16: Январь | B16: ДВН | C16: ЧУЗ "Больница "РЖД - Медицина" | D16: 23 | E16: 41.35446 | F16: 9 | G16: =Таблица1[[#This Row],[Оплачено случаев]]-Таблица1[[#This Row],[План ДВН, чел.]] -> 14 | H16: =ROUND(Таблица1[[#This Row],[Оплачено случаев]]/Таблица1[[#This Row],[План ДВН, чел.]]*100,1) -> 255.6 | J16: 23 | K16: 41.35446 | L16: 9 | M16: 87 | N16: 156.8005 | O16: 64 | P16: 115.44604 | Q16: 9 | R16: 127 | S16: 228.7213 | T16: 40 | U16: 71.9208 | V16: 10 | W16: 127 | X16: 228.7213 | AB16: 127 | AC16: 228.7213 | AG16: 127 | AH16: 228.7213 | AL16: 127 | AM16: 228.7213 | AQ16: 127 | AR16: 228.7213 | AV16: 127 | AW16: 228.7213 | BA16: 127 | BB16: 228.7213 | BF16: 127 | BG16: 228.7213 | BK16: 127 | BL16: 228.7213 | BP16: 28
A17: Январь | B17: ДВН | C17: КБ № 8 ФМБА | D17: 602 | E17: 837.81544 | F17: 417 | G17: =Таблица1[[#This Row],[Оплачено случаев]]-Таблица1[[#This Row],[План ДВН, чел.]] -> 185 | H17: =ROUND(Таблица1[[#This Row],[Оплачено случаев]]/Таблица1[[#This Row],[План ДВН, чел.]]*100,1) -> 144.4 | J17: 602 | K17: 837.81544 | L17: 417 | M17: 1716 | N17: 2388.19152 | O17: 1114 | P17: 1550.37608 | Q17: 735 | R17: 2465 | S17: 3432.02677 | T17: 749 | U17: 1043.83525 | V17: 825 | W17: 2465 | X17: 3432.02677 | AB17: 2465 | AC17: 3432.02677 | AG17: 2465 | AH17: 3432.02677 | AL17: 2465 | AM17: 3432.02677 | AQ17: 2465 | AR17: 3432.02677 | AV17: 2465 | AW17: 3432.02677 | BA17: 2465 | BB17: 3432.02677 | BF17: 2465 | BG17: 3432.02677 | BK17: 2465 | BL17: 3432.02677 | BP17: 1977
A18: Январь | B18: ДВН | C18: ЦРБ Бабынинского района | D18: 105 | E18: 195.9153 | F18: 28 | G18: =Таблица1[[#This Row],[Оплачено случаев]]-Таблица1[[#This Row],[План ДВН, чел.]] -> 77 | H18: =ROUND(Таблица1[[#This Row],[Оплачено случаев]]/Таблица1[[#This Row],[План ДВН, чел.]]*100,1) -> 375 | J18: 105 | K18: 195.9153 | L18: 28 | M18: 283 | N18: 449.80528 | O18: 178 | P18: 253.88998 | Q18: 28 | R18: 287 | S18: 457.26872 | T18: 4 | U18: 7.46344 | V18: 30 | W18: 287 | X18: 457.26872 | AB18: 287 | AC18: 457.26872 | AG18: 287 | AH18: 457.26872 | AL18: 287 | AM18: 457.26872 | AQ18: 287 | AR18: 457.26872 | AV18: 287 | AW18: 457.26872 | BA18: 287 | BB18: 457.26872 | BF18: 287 | BG18: 457.26872 | BK18: 287 | BL18: 457.26872 | BP18: 86
A19: Январь | B19: ДВН | C19: ЦРБ Боровского района | D19: 397 | E19: 740.74642 | F19: 319 | G19: =Таблица1[[#This Row],[Оплачено случаев]]-Таблица1[[#This Row],[План ДВН, чел.]] -> 78 | H19: =ROUND(Таблица1[[#This Row],[Оплачено случаев]]/Таблица1[[#This Row],[План ДВН, чел.]]*100,1) -> 124.5 | J19: 397 | K19: 740.74642 | L19: 319 | M19: 876 | N19: 1629.27782 | O19: 479 | P19: 888.5314 | Q19: 319 | R19: 1273 | S19: 2281.8342 | T19: 397 | U19: 652.55638 | V19: 319 | W19: 1273 | X19: 2281.8342 | AB19: 1273 | AC19: 2281.8342 | AG19: 1273 | AH19: 2281.8342 | AL19: 1273 | AM19: 2281.8342 | AQ19: 1273 | AR19: 2281.8342 | AV19: 1273 | AW19: 2281.8342 | BA19: 1273 | BB19: 2281.8342 | BF19: 1273 | BG19: 2281.8342 | BK19: 1273 | BL19: 2281.8342 | BP19: 957
A20: Январь | B20: ДВН | C20: ЦРБ Жуковского района | D20: 200 | E20: 367.48232 | F20: 200 | G20: =Таблица1[[#This Row],[Оплачено случаев]]-Таблица1[[#This Row],[План ДВН, чел.]] -> 0 | H20: =ROUND(Таблица1[[#This Row],[Оплачено случаев]]/Таблица1[[#This Row],[План ДВН, чел.]]*100,1) -> 100 | J20: 200 | K20: 367.48232 | L20: 200 | M20: 402 | N20: 734.90324 | O20: 202 | P20: 367.42092 | Q20: 230 | R20: 714 | S20: 1302.21754 | T20: 312 | U20: 567.3143 | V20: 240 | W20: 714 | X20: 1302.21754 | AB20: 714 | AC20: 1302.21754 | AG20: 714 | AH20: 1302.21754 | AL20: 714 | AM20: 1302.21754 | AQ20: 714 | AR20: 1302.21754 | AV20: 714 | AW20: 1302.21754 | BA20: 714 | BB20: 1302.21754 | BF20: 714 | BG20: 1302.21754 | BK20: 714 | BL20: 1302.21754 | BP20: 670
A21: Январь | B21: ДВН | C21: ГП "Город Кременки" | D21: 31 | E21: 57.84166 | F21: 30 | G21: =Таблица1[[#This Row],[Оплачено случаев]]-Таблица1[[#This Row],[План ДВН, чел.]] -> 1 | H21: =ROUND(Таблица1[[#This Row],[Оплачено случаев]]/Таблица1[[#This Row],[План ДВН, чел.]]*100,1) -> 103.3 | J21: 31 | K21: 57.84166 | L21: 30 | M21: 66 | N21: 123.14676 | O21: 35 | P21: 65.3051 | Q21: 50 | R21: 111 | S21: 185.77416 | T21: 45 | U21: 62.6274 | V21: 50 | W21: 111 | X21: 185.77416 | AB21: 111 | AC21: 185.77416 | AG21: 111 | AH21: 185.77416 | AL21: 111 | AM21: 185.77416 | AQ21: 111 | AR21: 185.77416 | AV21: 111 | AW21: 185.77416 | BA21: 111 | BB21: 185.77416 | BF21: 111 | BG21: 185.77416 | BK21: 111 | BL21: 185.77416 | BP21: 130
A22: Январь | B22: ДВН | C22: ЦРБ Малоярославецкого района | D22: 334 | E22: 452.20736 | F22: 150 | G22: =Таблица1[[#This Row],[Оплачено случаев]]-Таблица1[[#This Row],[План ДВН, чел.]] -> 184 | H22: =ROUND(Таблица1[[#This Row],[Оплачено случаев]]/Таблица1[[#This Row],[План ДВН, чел.]]*100,1) -> 222.7 | J22: 334 | K22: 452.20736 | L22: 150 | M22: 702 | N22: 965.27974 | O22: 368 | P22: 513.07238 | Q22: 150 | R22: 998 | S22: 1363.1174 | T22: 296 | U22: 397.83766 | V22: 150 | W22: 998 | X22: 1363.1174 | AB22: 998 | AC22: 1363.1174 | AG22: 998 | AH22: 1363.1174 | AL22: 998 | AM22: 1363.1174 | AQ22: 998 | AR22: 1363.1174 | AV22: 998 | AW22: 1363.1174 | BA22: 998 | BB22: 1363.1174 | BF22: 998 | BG22: 1363.1174 | BK22: 998 | BL22: 1363.1174 | BP22: 450
A23: Январь | B23: ДВН | C23: ЦРБ Тарусского района | D23: 94 | E23: 130.82168 | F23: 70 | G23: =Таблица1[[#This Row],[Оплачено случаев]]-Таблица1[[#This Row],[План ДВН, чел.]] -> 24 | H23: =ROUND(Таблица1[[#This Row],[Оплачено случаев]]/Таблица1[[#This Row],[План ДВН, чел.]]*100,1) -> 134.3 | J23: 94 | K23: 130.82168 | L23: 70 | M23: 331 | N23: 462.08174 | O23: 237 | P23: 331.26006 | Q23: 55 | R23: 563 | S23: 790.65046 | T23: 232 | U23: 328.56872 | V23: 92 | W23: 563 | X23: 790.65046 | AB23: 563 | AC23: 790.65046 | AG23: 563 | AH23: 790.65046 | AL23: 563 | AM23: 790.65046 | AQ23: 563 | AR23: 790.65046 | AV23: 563 | AW23: 790.65046 | BA23: 563 | BB23: 790.65046 | BF23: 563 | BG23: 790.65046 | BK23: 563 | BL23: 790.65046 | BP23: 217
A24: Февраль | B24: ДВН | C24: ЦМБ № 1 | D24: =O4 -> 310 | E24: =P4 -> 537.83742 | F24: =Q4 -> 242 | G24: =Таблица1[[#This Row],[Оплачено случаев]]-Таблица1[[#This Row],[План ДВН, чел.]] -> 68 | H24: =ROUND(Таблица1[[#This Row],[Оплачено случаев]]/Таблица1[[#This Row],[План ДВН, чел.]]*100,1) -> 128.1 | J24: =SUM(J4:J23) -> 7382 | K24: 11411.41472 | L24: 4052 | M24: 17807 | N24: 27574.83942 | O24: 10425 | P24: 16163.4247 | Q24: 6019 | R24: 25846 | S24: 39456.21721 | T24: 8039 | U24: 11881.37779 | V24: 6272 | W24: 25846 | X24: 39456.21721 | Y24: 0 | Z24: 0 | AA24: 0 | AB24: 25846 | AC24: 39456.21721 | AD24: 0 | AE24: 0 | AF24: 0 | AG24: 25846 | AH24: 39456.21721 | AI24: 0 | AJ24: 0 | AK24: 0 | AL24: 25846 | AM24: 39456.21721 | AN24: 0 | AO24: 0 | AP24: =SUM(AP4:AP23) -> 0 | AQ24: 25846 | AR24: 39456.21721 | AS24: 0 | AT24: 0 | AU24: 0 | AV24: 25846 | AW24: 39456.21721 | AX24: 0 | AY24: 0 | AZ24: 0 | BA24: 25846 | BB24: 39456.21721 | BC24: 0 | BD24: 0 | BE24: 0 | BF24: 25846 | BG24: 39456.21721 | BH24: 0 | BI24: 0 | BJ24: 0 | BK24: 25846 | BL24: =SUM(BL4:BL23) -> 39456.21721 | BM24: 0 | BN24: 0 | BO24: 0 | BP24: 16343
A25: Февраль | B25: ДВН | C25: ЦМБ № 2 | D25: 892 | E25: 1664.34712 | F25: 541 | G25: =Таблица1[[#This Row],[Оплачено случаев]]-Таблица1[[#This Row],[План ДВН, чел.]] -> 351 | H25: =ROUND(Таблица1[[#This Row],[Оплачено случаев]]/Таблица1[[#This Row],[План ДВН, чел.]]*100,1) -> 164.9
A26: Февраль | B26: ДВН | C26: ЦМБ № 3 | D26: 298 | E26: 403.26242 | F26: 80 | G26: =Таблица1[[#This Row],[Оплачено случаев]]-Таблица1[[#This Row],[План ДВН, чел.]] -> 218 | H26: =ROUND(Таблица1[[#This Row],[Оплачено случаев]]/Таблица1[[#This Row],[План ДВН, чел.]]*100,1) -> 372.5 | K26: =K4/1000 -> 0.2066413 | P26: =P4/1000 -> 0.53783742 | U26: =U4/1000 -> 0.49435148 | Z26: =Z4/1000 -> 0 | AE26: =AE4/1000 -> 0 | AJ26: =AJ4/1000 -> 0 | AO26: =AO4/1000 -> 0 | AT26: =AT4/1000 -> 0
A27: Февраль | B27: ДВН | C27: ЦМБ № 4 | D27: 108 | E27: 169.7418 | F27: 124 | G27: =Таблица1[[#This Row],[Оплачено случаев]]-Таблица1[[#This Row],[План ДВН, чел.]] -> -16 | H27: =ROUND(Таблица1[[#This Row],[Оплачено случаев]]/Таблица1[[#This Row],[План ДВН, чел.]]*100,1) -> 87.1 | K27: =K5/1000 -> 1.51867436 | P27: =P5/1000 -> 1.66434712 | U27: =U5/1000 -> 0.02780148 | Z27: =Z5/1000 -> 0 | AE27: =AE5/1000 -> 0 | AJ27: =AJ5/1000 -> 0 | AO27: =AO5/1000 -> 0 | AT27: =AT5/1000 -> 0
A28: Февраль | B28: ДВН | C28: ЦМБ № 5 | D28: 435 | E28: 754.7412 | F28: 228 | G28: =Таблица1[[#This Row],[Оплачено случаев]]-Таблица1[[#This Row],[План ДВН, чел.]] -> 207 | H28: =ROUND(Таблица1[[#This Row],[Оплачено случаев]]/Таблица1[[#This Row],[План ДВН, чел.]]*100,1) -> 190.8 | K28: 0.436834 | P28: 0.40326242 | U28: 0.21575552 | Z28: 0 | AE28: 0 | AJ28: 0 | AO28: 0 | AT28: 0
A29: Февраль | B29: ДВН | C29: ЦМБ № 6 | D29: 1429 | E29: 2261.80468 | F29: 500 | G29: =Таблица1[[#This Row],[Оплачено случаев]]-Таблица1[[#This Row],[План ДВН, чел.]] -> 929 | H29: =ROUND(Таблица1[[#This Row],[Оплачено случаев]]/Таблица1[[#This Row],[План ДВН, чел.]]*100,1) -> 285.8 | K29: 0.21081924 | P29: 0.1697418 | U29: 0.21186108 | Z29: 0 | AE29: 0 | AJ29: 0 | AO29: 0 | AT29: 0
A30: Февраль | B30: ДВН | C30: КГБ № 5 | D30: 1369 | E30: 2171.3781 | F30: 1350 | G30: =Таблица1[[#This Row],[Оплачено случаев]]-Таблица1[[#This Row],[План ДВН, чел.]] -> 19 | H30: =ROUND(Таблица1[[#This Row],[Оплачено случаев]]/Таблица1[[#This Row],[План ДВН, чел.]]*100,1) -> 101.4 | K30: 0.05723754 | P30: 0.7547412 | U30: 0.33388312 | Z30: 0 | AE30: 0 | AJ30: 0 | AO30: 0 | AT30: 0
A31: Февраль | B31: ДВН | C31: КГКБ № 4 | D31: 974 | E31: 1470.08376 | F31: 745 | G31: =Таблица1[[#This Row],[Оплачено случаев]]-Таблица1[[#This Row],[План ДВН, чел.]] -> 229 | H31: =ROUND(Таблица1[[#This Row],[Оплачено случаев]]/Таблица1[[#This Row],[План ДВН, чел.]]*100,1) -> 130.7 | K31: 0.88671668 | P31: 2.26180468 | U31: 2.027279 | Z31: 0 | AE31: 0 | AJ31: 0 | AO31: 0 | AT31: 0
A32: Февраль | B32: ДВН | C32: Городская поликлиника | D32: 1854 | E32: 2534.03208 | F32: 630 | G32: =Таблица1[[#This Row],[Оплачено случаев]]-Таблица1[[#This Row],[План ДВН, чел.]] -> 1224 | H32: =ROUND(Таблица1[[#This Row],[Оплачено случаев]]/Таблица1[[#This Row],[План ДВН, чел.]]*100,1) -> 294.3 | K32: 2.12319382 | P32: 2.1713781 | U32: 2.19716468 | Z32: 0 | AE32: 0 | AJ32: 0 | AO32: 0 | AT32: 0
A33: Февраль | B33: ДВН | C33: МСЧ № 1 г. Калуги | D33: 79 | E33: 110.89416 | F33: 3 | G33: =Таблица1[[#This Row],[Оплачено случаев]]-Таблица1[[#This Row],[План ДВН, чел.]] -> 76 | H33: =ROUND(Таблица1[[#This Row],[Оплачено случаев]]/Таблица1[[#This Row],[План ДВН, чел.]]*100,1) -> 2633.3 | K33: 1.35132464 | P33: 1.47008376 | U33: 1.32718342 | Z33: 0 | AE33: 0 | AJ33: 0 | AO33: 0 | AT33: 0
A34: Февраль | B34: ДВН | C34: МСЧ № 2 г. Калуги | D34: 0 | E34: 0 | F34: 0 | G34: =Таблица1[[#This Row],[Оплачено случаев]]-Таблица1[[#This Row],[План ДВН, чел.]] -> 0 | H34: =ROUND(Таблица1[[#This Row],[Оплачено случаев]]/Таблица1[[#This Row],[План ДВН, чел.]]*100,1) ->  | K34: 1.7957885 | P34: 2.53403208 | U34: 1.82351226 | Z34: 0 | AE34: 0 | AJ34: 0 | AO34: 0 | AT34: 0
A35: Февраль | B35: ДВН | C35: МСЧ МВД | D35: 0 | E35: 0 | F35: 0 | G35: =Таблица1[[#This Row],[Оплачено случаев]]-Таблица1[[#This Row],[План ДВН, чел.]] -> 0 | H35: =ROUND(Таблица1[[#This Row],[Оплачено случаев]]/Таблица1[[#This Row],[План ДВН, чел.]]*100,1) ->  | K35: 0 | P35: 0.11089416 | U35: 0.0904618 | Z35: 0 | AE35: 0 | AJ35: 0 | AO35: 0 | AT35: 0
A36: Февраль | B36: ДВН | C36: ЧУЗ "Больница "РЖД - Медицина" | D36: 64 | E36: 115.44604 | F36: 9 | G36: =Таблица1[[#This Row],[Оплачено случаев]]-Таблица1[[#This Row],[План ДВН, чел.]] -> 55 | H36: =ROUND(Таблица1[[#This Row],[Оплачено случаев]]/Таблица1[[#This Row],[План ДВН, чел.]]*100,1) -> 711.1 | K36: 0 | P36: 0 | U36: 0 | Z36: 0 | AE36: 0 | AJ36: 0 | AO36: 0 | AT36: 0
A37: Февраль | B37: ДВН | C37: КБ № 8 ФМБА | D37: 1114 | E37: 1550.37608 | F37: 735 | G37: =Таблица1[[#This Row],[Оплачено случаев]]-Таблица1[[#This Row],[План ДВН, чел.]] -> 379 | H37: =ROUND(Таблица1[[#This Row],[Оплачено случаев]]/Таблица1[[#This Row],[План ДВН, чел.]]*100,1) -> 151.6 | K37: 0 | P37: 0 | U37: 0 | Z37: 0 | AE37: 0 | AJ37: 0 | AO37: 0 | AT37: 0
A38: Февраль | B38: ДВН | C38: ЦРБ Бабынинского района | D38: 178 | E38: 253.88998 | F38: 28 | G38: =Таблица1[[#This Row],[Оплачено случаев]]-Таблица1[[#This Row],[План ДВН, чел.]] -> 150 | H38: =ROUND(Таблица1[[#This Row],[Оплачено случаев]]/Таблица1[[#This Row],[План ДВН, чел.]]*100,1) -> 635.7 | K38: 0.04135446 | P38: 0.11544604 | U38: 0.0719208 | Z38: 0 | AE38: 0 | AJ38: 0 | AO38: 0 | AT38: 0
A39: Февраль | B39: ДВН | C39: ЦРБ Боровского района | D39: 479 | E39: 888.5314 | F39: 319 | G39: =Таблица1[[#This Row],[Оплачено случаев]]-Таблица1[[#This Row],[План ДВН, чел.]] -> 160 | H39: =ROUND(Таблица1[[#This Row],[Оплачено случаев]]/Таблица1[[#This Row],[План ДВН, чел.]]*100,1) -> 150.2 | K39: 0.83781544 | P39: 1.55037608 | U39: 1.04383525 | Z39: 0 | AE39: 0 | AJ39: 0 | AO39: 0 | AT39: 0
A40: Февраль | B40: ДВН | C40: ЦРБ Жуковского района | D40: 202 | E40: 367.42092 | F40: 230 | G40: =Таблица1[[#This Row],[Оплачено случаев]]-Таблица1[[#This Row],[План ДВН, чел.]] -> -28 | H40: =ROUND(Таблица1[[#This Row],[Оплачено случаев]]/Таблица1[[#This Row],[План ДВН, чел.]]*100,1) -> 87.8 | K40: 0.1959153 | P40: 0.25388998 | U40: 0.00746344 | Z40: 0 | AE40: 0 | AJ40: 0 | AO40: 0 | AT40: 0
A41: Февраль | B41: ДВН | C41: ГП "Город Кременки" | D41: 35 | E41: 65.3051 | F41: 50 | G41: =Таблица1[[#This Row],[Оплачено случаев]]-Таблица1[[#This Row],[План ДВН, чел.]] -> -15 | H41: =ROUND(Таблица1[[#This Row],[Оплачено случаев]]/Таблица1[[#This Row],[План ДВН, чел.]]*100,1) -> 70 | K41: 0.74074642 | P41: 0.8885314 | U41: 0.65255638 | Z41: 0 | AE41: 0 | AJ41: 0 | AO41: 0 | AT41: 0
A42: Февраль | B42: ДВН | C42: ЦРБ Малоярославецкого района | D42: 368 | E42: 513.07238 | F42: 150 | G42: =Таблица1[[#This Row],[Оплачено случаев]]-Таблица1[[#This Row],[План ДВН, чел.]] -> 218 | H42: =ROUND(Таблица1[[#This Row],[Оплачено случаев]]/Таблица1[[#This Row],[План ДВН, чел.]]*100,1) -> 245.3 | K42: 0.36748232 | P42: 0.36742092 | U42: 0.5673143 | Z42: 0 | AE42: 0 | AJ42: 0 | AO42: 0 | AT42: 0
A43: Февраль | B43: ДВН | C43: ЦРБ Тарусского района | D43: 237 | E43: 331.26006 | F43: 55 | G43: =Таблица1[[#This Row],[Оплачено случаев]]-Таблица1[[#This Row],[План ДВН, чел.]] -> 182 | H43: =ROUND(Таблица1[[#This Row],[Оплачено случаев]]/Таблица1[[#This Row],[План ДВН, чел.]]*100,1) -> 430.9 | K43: 0.05784166 | P43: 0.0653051 | U43: 0.0626274 | Z43: 0 | AE43: 0 | AJ43: 0 | AO43: 0 | AT43: 0
A44: Март | B44: ДВН | C44: ЦМБ № 1 | D44: =T4 -> 310 | E44: =U4 -> 494.35148 | F44: =V4 -> 277 | G44: =Таблица1[[#This Row],[Оплачено случаев]]-Таблица1[[#This Row],[План ДВН, чел.]] -> 33 | H44: =ROUND(Таблица1[[#This Row],[Оплачено случаев]]/Таблица1[[#This Row],[План ДВН, чел.]]*100,1) -> 111.9 | K44: 0.45220736 | P44: 0.51307238 | U44: 0.39783766 | Z44: 0 | AE44: 0 | AJ44: 0 | AO44: 0 | AT44: 0
A45: Март | B45: ДВН | C45: ЦМБ № 2 | D45: 21 | E45: 27.80148 | F45: 541 | G45: =Таблица1[[#This Row],[Оплачено случаев]]-Таблица1[[#This Row],[План ДВН, чел.]] -> -520 | H45: =ROUND(Таблица1[[#This Row],[Оплачено случаев]]/Таблица1[[#This Row],[План ДВН, чел.]]*100,1) -> 3.9 | K45: 0.13082168 | P45: 0.33126006 | U45: 0.32856872 | Z45: 0 | AE45: 0 | AJ45: 0 | AO45: 0 | AT45: 0
A46: Март | B46: ДВН | C46: ЦМБ № 3 | D46: 160 | E46: 215.75552 | F46: 131 | G46: =Таблица1[[#This Row],[Оплачено случаев]]-Таблица1[[#This Row],[План ДВН, чел.]] -> 29 | H46: =ROUND(Таблица1[[#This Row],[Оплачено случаев]]/Таблица1[[#This Row],[План ДВН, чел.]]*100,1) -> 122.1 | K46: =K24/1000 -> 11.41141472 | P46: =P24/1000 -> 16.1634247 | U46: 11.88137779 | AE46: 0 | AJ46: 0 | AO46: 0
A47: Март | B47: ДВН | C47: ЦМБ № 4 | D47: 137 | E47: 211.86108 | F47: 125 | G47: =Таблица1[[#This Row],[Оплачено случаев]]-Таблица1[[#This Row],[План ДВН, чел.]] -> 12 | H47: =ROUND(Таблица1[[#This Row],[Оплачено случаев]]/Таблица1[[#This Row],[План ДВН, чел.]]*100,1) -> 109.6 | K47: 0
A48: Март | B48: ДВН | C48: ЦМБ № 5 | D48: 246 | E48: 333.88312 | F48: 246 | G48: =Таблица1[[#This Row],[Оплачено случаев]]-Таблица1[[#This Row],[План ДВН, чел.]] -> 0 | H48: =ROUND(Таблица1[[#This Row],[Оплачено случаев]]/Таблица1[[#This Row],[План ДВН, чел.]]*100,1) -> 100 | K48: 0.0002066413
A49: Март | B49: ДВН | C49: ЦМБ № 6 | D49: 1302 | E49: 2027.279 | F49: 500 | G49: =Таблица1[[#This Row],[Оплачено случаев]]-Таблица1[[#This Row],[План ДВН, чел.]] -> 802 | H49: =ROUND(Таблица1[[#This Row],[Оплачено случаев]]/Таблица1[[#This Row],[План ДВН, чел.]]*100,1) -> 260.4 | K49: 0.00151867436
A50: Март | B50: ДВН | C50: КГБ № 5 | D50: 1405 | E50: 2197.16468 | F50: 1350 | G50: =Таблица1[[#This Row],[Оплачено случаев]]-Таблица1[[#This Row],[План ДВН, чел.]] -> 55 | H50: =ROUND(Таблица1[[#This Row],[Оплачено случаев]]/Таблица1[[#This Row],[План ДВН, чел.]]*100,1) -> 104.1 | K50: 0.000436834
A51: Март | B51: ДВН | C51: КГКБ № 4 | D51: 980 | E51: 1327.18342 | F51: 745 | G51: =Таблица1[[#This Row],[Оплачено случаев]]-Таблица1[[#This Row],[План ДВН, чел.]] -> 235 | H51: =ROUND(Таблица1[[#This Row],[Оплачено случаев]]/Таблица1[[#This Row],[План ДВН, чел.]]*100,1) -> 131.5 | K51: 0.00021081924
A52: Март | B52: ДВН | C52: Городская поликлиника | D52: 1338 | E52: 1823.51226 | F52: 630 | G52: =Таблица1[[#This Row],[Оплачено случаев]]-Таблица1[[#This Row],[План ДВН, чел.]] -> 708 | H52: =ROUND(Таблица1[[#This Row],[Оплачено случаев]]/Таблица1[[#This Row],[План ДВН, чел.]]*100,1) -> 212.4 | K52: 5.723754e-05
A53: Март | B53: ДВН | C53: МСЧ № 1 г. Калуги | D53: 65 | E53: 90.4618 | F53: 10 | G53: =Таблица1[[#This Row],[Оплачено случаев]]-Таблица1[[#This Row],[План ДВН, чел.]] -> 55 | H53: =ROUND(Таблица1[[#This Row],[Оплачено случаев]]/Таблица1[[#This Row],[План ДВН, чел.]]*100,1) -> 650 | K53: 0.00088671668
A54: Март | B54: ДВН | C54: МСЧ № 2 г. Калуги | D54: 0 | E54: 0 | F54: 1 | G54: =Таблица1[[#This Row],[Оплачено случаев]]-Таблица1[[#This Row],[План ДВН, чел.]] -> -1 | H54: =ROUND(Таблица1[[#This Row],[Оплачено случаев]]/Таблица1[[#This Row],[План ДВН, чел.]]*100,1) -> 0 | K54: 0.00212319382
A55: Март | B55: ДВН | C55: МСЧ МВД | D55: 0 | E55: 0 | F55: 0 | G55: =Таблица1[[#This Row],[Оплачено случаев]]-Таблица1[[#This Row],[План ДВН, чел.]] -> 0 | H55: =ROUND(Таблица1[[#This Row],[Оплачено случаев]]/Таблица1[[#This Row],[План ДВН, чел.]]*100,1) ->  | K55: 0.00135132464
A56: Март | B56: ДВН | C56: ЧУЗ "Больница "РЖД - Медицина" | D56: 40 | E56: 71.9208 | F56: 10 | G56: =Таблица1[[#This Row],[Оплачено случаев]]-Таблица1[[#This Row],[План ДВН, чел.]] -> 30 | H56: =ROUND(Таблица1[[#This Row],[Оплачено случаев]]/Таблица1[[#This Row],[План ДВН, чел.]]*100,1) -> 400 | K56: 0.0017957885
A57: Март | B57: ДВН | C57: КБ № 8 ФМБА | D57: 749 | E57: 1043.83525 | F57: 825 | G57: =Таблица1[[#This Row],[Оплачено случаев]]-Таблица1[[#This Row],[План ДВН, чел.]] -> -76 | H57: =ROUND(Таблица1[[#This Row],[Оплачено случаев]]/Таблица1[[#This Row],[План ДВН, чел.]]*100,1) -> 90.8 | K57: 0
A58: Март | B58: ДВН | C58: ЦРБ Бабынинского района | D58: 4 | E58: 7.46344 | F58: 30 | G58: =Таблица1[[#This Row],[Оплачено случаев]]-Таблица1[[#This Row],[План ДВН, чел.]] -> -26 | H58: =ROUND(Таблица1[[#This Row],[Оплачено случаев]]/Таблица1[[#This Row],[План ДВН, чел.]]*100,1) -> 13.3 | K58: 0
A59: Март | B59: ДВН | C59: ЦРБ Боровского района | D59: 397 | E59: 652.55638 | F59: 319 | G59: =Таблица1[[#This Row],[Оплачено случаев]]-Таблица1[[#This Row],[План ДВН, чел.]] -> 78 | H59: =ROUND(Таблица1[[#This Row],[Оплачено случаев]]/Таблица1[[#This Row],[План ДВН, чел.]]*100,1) -> 124.5 | K59: 0
A60: Март | B60: ДВН | C60: ЦРБ Жуковского района | D60: 312 | E60: 567.3143 | F60: 240 | G60: =Таблица1[[#This Row],[Оплачено случаев]]-Таблица1[[#This Row],[План ДВН, чел.]] -> 72 | H60: =ROUND(Таблица1[[#This Row],[Оплачено случаев]]/Таблица1[[#This Row],[План ДВН, чел.]]*100,1) -> 130 | K60: 4.135446e-05
A61: Март | B61: ДВН | C61: ГП "Город Кременки" | D61: 45 | E61: 62.6274 | F61: 50 | G61: =Таблица1[[#This Row],[Оплачено случаев]]-Таблица1[[#This Row],[План ДВН, чел.]] -> -5 | H61: =ROUND(Таблица1[[#This Row],[Оплачено случаев]]/Таблица1[[#This Row],[План ДВН, чел.]]*100,1) -> 90 | K61: 0.00083781544
A62: Март | B62: ДВН | C62: ЦРБ Малоярославецкого района | D62: 296 | E62: 397.83766 | F62: 150 | G62: =Таблица1[[#This Row],[Оплачено случаев]]-Таблица1[[#This Row],[План ДВН, чел.]] -> 146 | H62: =ROUND(Таблица1[[#This Row],[Оплачено случаев]]/Таблица1[[#This Row],[План ДВН, чел.]]*100,1) -> 197.3 | K62: 0.0001959153
A63: Март | B63: ДВН | C63: ЦРБ Тарусского района | D63: 232 | E63: 328.56872 | F63: 92 | G63: =Таблица1[[#This Row],[Оплачено случаев]]-Таблица1[[#This Row],[План ДВН, чел.]] -> 140 | H63: =ROUND(Таблица1[[#This Row],[Оплачено случаев]]/Таблица1[[#This Row],[План ДВН, чел.]]*100,1) -> 252.2 | K63: 0.00074074642
A64: Апрель | B64: ДВН | C64: ЦМБ № 1 | D64: =Y4 -> 0 | E64: =Z4 -> 0 | F64: =AA4 -> 0 | G64: =Таблица1[[#This Row],[Оплачено случаев]]-Таблица1[[#This Row],[План ДВН, чел.]] -> 0 | H64: =ROUND(Таблица1[[#This Row],[Оплачено случаев]]/Таблица1[[#This Row],[План ДВН, чел.]]*100,1) ->  | K64: =K43/1000 -> 5.784166e-05
A65: Апрель | B65: ДВН | C65: ЦМБ № 2 | D65: 0 | E65: 0 | F65: 0 | G65: =Таблица1[[#This Row],[Оплачено случаев]]-Таблица1[[#This Row],[План ДВН, чел.]] -> 0 | H65: =ROUND(Таблица1[[#This Row],[Оплачено случаев]]/Таблица1[[#This Row],[План ДВН, чел.]]*100,1) ->  | K65: =#REF!/1000 -> 
A66: Апрель | B66: ДВН | C66: ЦМБ № 3 | D66: 0 | E66: 0 | F66: 0 | G66: =Таблица1[[#This Row],[Оплачено случаев]]-Таблица1[[#This Row],[План ДВН, чел.]] -> 0 | H66: =ROUND(Таблица1[[#This Row],[Оплачено случаев]]/Таблица1[[#This Row],[План ДВН, чел.]]*100,1) ->  | K66: =K44/1000 -> 0.00045220736
A67: Апрель | B67: ДВН | C67: ЦМБ № 4 | D67: 0 | E67: 0 | F67: 0 | G67: =Таблица1[[#This Row],[Оплачено случаев]]-Таблица1[[#This Row],[План ДВН, чел.]] -> 0 | H67: =ROUND(Таблица1[[#This Row],[Оплачено случаев]]/Таблица1[[#This Row],[План ДВН, чел.]]*100,1) ->  | K67: 0.00013082168
A68: Апрель | B68: ДВН | C68: ЦМБ № 5 | D68: 0 | E68: 0 | F68: 0 | G68: =Таблица1[[#This Row],[Оплачено случаев]]-Таблица1[[#This Row],[План ДВН, чел.]] -> 0 | H68: =ROUND(Таблица1[[#This Row],[Оплачено случаев]]/Таблица1[[#This Row],[План ДВН, чел.]]*100,1) ->  | K68: 0.01141141472
A69: Апрель | B69: ДВН | C69: ЦМБ № 6 | D69: 0 | E69: 0 | F69: 0 | G69: =Таблица1[[#This Row],[Оплачено случаев]]-Таблица1[[#This Row],[План ДВН, чел.]] -> 0 | H69: =ROUND(Таблица1[[#This Row],[Оплачено случаев]]/Таблица1[[#This Row],[План ДВН, чел.]]*100,1) ->  | K69: 0
A70: Апрель | B70: ДВН | C70: КГБ № 5 | D70: 0 | E70: 0 | F70: 0 | G70: =Таблица1[[#This Row],[Оплачено случаев]]-Таблица1[[#This Row],[План ДВН, чел.]] -> 0 | H70: =ROUND(Таблица1[[#This Row],[Оплачено случаев]]/Таблица1[[#This Row],[План ДВН, чел.]]*100,1) ->  | K70: 2.066413e-07
A71: Апрель | B71: ДВН | C71: КГКБ № 4 | D71: 0 | E71: 0 | F71: 0 | G71: =Таблица1[[#This Row],[Оплачено случаев]]-Таблица1[[#This Row],[План ДВН, чел.]] -> 0 | H71: =ROUND(Таблица1[[#This Row],[Оплачено случаев]]/Таблица1[[#This Row],[План ДВН, чел.]]*100,1) ->  | K71: 1.51867436e-06
A72: Апрель | B72: ДВН | C72: Городская поликлиника | D72: 0 | E72: 0 | F72: 0 | G72: =Таблица1[[#This Row],[Оплачено случаев]]-Таблица1[[#This Row],[План ДВН, чел.]] -> 0 | H72: =ROUND(Таблица1[[#This Row],[Оплачено случаев]]/Таблица1[[#This Row],[План ДВН, чел.]]*100,1) ->  | K72: 4.36834e-07
A73: Апрель | B73: ДВН | C73: МСЧ № 1 г. Калуги | D73: 0 | E73: 0 | F73: 0 | G73: =Таблица1[[#This Row],[Оплачено случаев]]-Таблица1[[#This Row],[План ДВН, чел.]] -> 0 | H73: =ROUND(Таблица1[[#This Row],[Оплачено случаев]]/Таблица1[[#This Row],[План ДВН, чел.]]*100,1) ->  | K73: 2.1081924e-07
A74: Апрель | B74: ДВН | C74: МСЧ № 2 г. Калуги | D74: 0 | E74: 0 | F74: 0 | G74: =Таблица1[[#This Row],[Оплачено случаев]]-Таблица1[[#This Row],[План ДВН, чел.]] -> 0 | H74: =ROUND(Таблица1[[#This Row],[Оплачено случаев]]/Таблица1[[#This Row],[План ДВН, чел.]]*100,1) ->  | K74: 5.723754e-08
A75: Апрель | B75: ДВН | C75: МСЧ МВД | D75: 0 | E75: 0 | F75: 0 | G75: =Таблица1[[#This Row],[Оплачено случаев]]-Таблица1[[#This Row],[План ДВН, чел.]] -> 0 | H75: =ROUND(Таблица1[[#This Row],[Оплачено случаев]]/Таблица1[[#This Row],[План ДВН, чел.]]*100,1) ->  | K75: 8.8671668e-07
A76: Апрель | B76: ДВН | C76: ЧУЗ "Больница "РЖД - Медицина" | D76: 0 | E76: 0 | F76: 0 | G76: =Таблица1[[#This Row],[Оплачено случаев]]-Таблица1[[#This Row],[План ДВН, чел.]] -> 0 | H76: =ROUND(Таблица1[[#This Row],[Оплачено случаев]]/Таблица1[[#This Row],[План ДВН, чел.]]*100,1) ->  | K76: 2.12319382e-06
A77: Апрель | B77: ДВН | C77: КБ № 8 ФМБА | D77: 0 | E77: 0 | F77: 0 | G77: =Таблица1[[#This Row],[Оплачено случаев]]-Таблица1[[#This Row],[План ДВН, чел.]] -> 0 | H77: =ROUND(Таблица1[[#This Row],[Оплачено случаев]]/Таблица1[[#This Row],[План ДВН, чел.]]*100,1) ->  | K77: 1.35132464e-06
A78: Апрель | B78: ДВН | C78: ЦРБ Бабынинского района | D78: 0 | E78: 0 | F78: 0 | G78: =Таблица1[[#This Row],[Оплачено случаев]]-Таблица1[[#This Row],[План ДВН, чел.]] -> 0 | H78: =ROUND(Таблица1[[#This Row],[Оплачено случаев]]/Таблица1[[#This Row],[План ДВН, чел.]]*100,1) ->  | K78: 1.7957885e-06
A79: Апрель | B79: ДВН | C79: ЦРБ Боровского района | D79: 0 | E79: 0 | F79: 0 | G79: =Таблица1[[#This Row],[Оплачено случаев]]-Таблица1[[#This Row],[План ДВН, чел.]] -> 0 | H79: =ROUND(Таблица1[[#This Row],[Оплачено случаев]]/Таблица1[[#This Row],[План ДВН, чел.]]*100,1) ->  | K79: 0
A80: Апрель | B80: ДВН | C80: ЦРБ Жуковского района | D80: 0 | E80: 0 | F80: 0 | G80: =Таблица1[[#This Row],[Оплачено случаев]]-Таблица1[[#This Row],[План ДВН, чел.]] -> 0 | H80: =ROUND(Таблица1[[#This Row],[Оплачено случаев]]/Таблица1[[#This Row],[План ДВН, чел.]]*100,1) ->  | K80: 0
A81: Апрель | B81: ДВН | C81: ГП "Город Кременки" | D81: 0 | E81: 0 | F81: 0 | G81: =Таблица1[[#This Row],[Оплачено случаев]]-Таблица1[[#This Row],[План ДВН, чел.]] -> 0 | H81: =ROUND(Таблица1[[#This Row],[Оплачено случаев]]/Таблица1[[#This Row],[План ДВН, чел.]]*100,1) ->  | K81: 0
A82: Апрель | B82: ДВН | C82: ЦРБ Малоярославецкого района | D82: 0 | E82: 0 | F82: 0 | G82: =Таблица1[[#This Row],[Оплачено случаев]]-Таблица1[[#This Row],[План ДВН, чел.]] -> 0 | H82: =ROUND(Таблица1[[#This Row],[Оплачено случаев]]/Таблица1[[#This Row],[План ДВН, чел.]]*100,1) ->  | K82: 4.135446e-08
A83: Апрель | B83: ДВН | C83: ЦРБ Тарусского района | D83: 0 | E83: 0 | F83: 0 | G83: =Таблица1[[#This Row],[Оплачено случаев]]-Таблица1[[#This Row],[План ДВН, чел.]] -> 0 | H83: =ROUND(Таблица1[[#This Row],[Оплачено случаев]]/Таблица1[[#This Row],[План ДВН, чел.]]*100,1) ->  | K83: 8.3781544e-07
A84: Май | B84: ДВН | C84: ЦМБ № 1 | D84: =AD4 -> 0 | E84: =AE4 -> 0 | F84: =AF4 -> 0 | G84: =Таблица1[[#This Row],[Оплачено случаев]]-Таблица1[[#This Row],[План ДВН, чел.]] -> 0 | H84: =ROUND(Таблица1[[#This Row],[Оплачено случаев]]/Таблица1[[#This Row],[План ДВН, чел.]]*100,1) ->  | K84: =K63/1000 -> 7.4074642e-07
A85: Май | B85: ДВН | C85: ЦМБ № 2 | D85: 0 | E85: 0 | F85: 0 | G85: =Таблица1[[#This Row],[Оплачено случаев]]-Таблица1[[#This Row],[План ДВН, чел.]] -> 0 | H85: =ROUND(Таблица1[[#This Row],[Оплачено случаев]]/Таблица1[[#This Row],[План ДВН, чел.]]*100,1) ->  | K85: =#REF!/1000 -> 
A86: Май | B86: ДВН | C86: ЦМБ № 3 | D86: 0 | E86: 0 | F86: 0 | G86: =Таблица1[[#This Row],[Оплачено случаев]]-Таблица1[[#This Row],[План ДВН, чел.]] -> 0 | H86: =ROUND(Таблица1[[#This Row],[Оплачено случаев]]/Таблица1[[#This Row],[План ДВН, чел.]]*100,1) ->  | K86: =K64/1000 -> 5.784166e-08
A87: Май | B87: ДВН | C87: ЦМБ № 4 | D87: 0 | E87: 0 | F87: 0 | G87: =Таблица1[[#This Row],[Оплачено случаев]]-Таблица1[[#This Row],[План ДВН, чел.]] -> 0 | H87: =ROUND(Таблица1[[#This Row],[Оплачено случаев]]/Таблица1[[#This Row],[План ДВН, чел.]]*100,1) -> 
A88: Май | B88: ДВН | C88: ЦМБ № 5 | D88: 0 | E88: 0 | F88: 0 | G88: =Таблица1[[#This Row],[Оплачено случаев]]-Таблица1[[#This Row],[План ДВН, чел.]] -> 0 | H88: =ROUND(Таблица1[[#This Row],[Оплачено случаев]]/Таблица1[[#This Row],[План ДВН, чел.]]*100,1) ->  | K88: 4.5220736e-07
A89: Май | B89: ДВН | C89: ЦМБ № 6 | D89: 0 | E89: 0 | F89: 0 | G89: =Таблица1[[#This Row],[Оплачено случаев]]-Таблица1[[#This Row],[План ДВН, чел.]] -> 0 | H89: =ROUND(Таблица1[[#This Row],[Оплачено случаев]]/Таблица1[[#This Row],[План ДВН, чел.]]*100,1) ->  | K89: 1.3082168e-07
A90: Май | B90: ДВН | C90: КГБ № 5 | D90: 0 | E90: 0 | F90: 0 | G90: =Таблица1[[#This Row],[Оплачено случаев]]-Таблица1[[#This Row],[План ДВН, чел.]] -> 0 | H90: =ROUND(Таблица1[[#This Row],[Оплачено случаев]]/Таблица1[[#This Row],[План ДВН, чел.]]*100,1) ->  | K90: 1.141141472e-05
A91: Май | B91: ДВН | C91: КГКБ № 4 | D91: 0 | E91: 0 | F91: 0 | G91: =Таблица1[[#This Row],[Оплачено случаев]]-Таблица1[[#This Row],[План ДВН, чел.]] -> 0 | H91: =ROUND(Таблица1[[#This Row],[Оплачено случаев]]/Таблица1[[#This Row],[План ДВН, чел.]]*100,1) ->  | K91: 0
A92: Май | B92: ДВН | C92: Городская поликлиника | D92: 0 | E92: 0 | F92: 0 | G92: =Таблица1[[#This Row],[Оплачено случаев]]-Таблица1[[#This Row],[План ДВН, чел.]] -> 0 | H92: =ROUND(Таблица1[[#This Row],[Оплачено случаев]]/Таблица1[[#This Row],[План ДВН, чел.]]*100,1) ->  | K92: 2.066413e-10
A93: Май | B93: ДВН | C93: МСЧ № 1 г. Калуги | D93: 0 | E93: 0 | F93: 0 | G93: =Таблица1[[#This Row],[Оплачено случаев]]-Таблица1[[#This Row],[План ДВН, чел.]] -> 0 | H93: =ROUND(Таблица1[[#This Row],[Оплачено случаев]]/Таблица1[[#This Row],[План ДВН, чел.]]*100,1) ->  | K93: 1.51867436e-09
A94: Май | B94: ДВН | C94: МСЧ № 2 г. Калуги | D94: 0 | E94: 0 | F94: 0 | G94: =Таблица1[[#This Row],[Оплачено случаев]]-Таблица1[[#This Row],[План ДВН, чел.]] -> 0 | H94: =ROUND(Таблица1[[#This Row],[Оплачено случаев]]/Таблица1[[#This Row],[План ДВН, чел.]]*100,1) ->  | K94: 4.36834e-10
A95: Май | B95: ДВН | C95: МСЧ МВД | D95: 0 | E95: 0 | F95: 0 | G95: =Таблица1[[#This Row],[Оплачено случаев]]-Таблица1[[#This Row],[План ДВН, чел.]] -> 0 | H95: =ROUND(Таблица1[[#This Row],[Оплачено случаев]]/Таблица1[[#This Row],[План ДВН, чел.]]*100,1) ->  | K95: 2.1081924e-10
A96: Май | B96: ДВН | C96: ЧУЗ "Больница "РЖД - Медицина" | D96: 0 | E96: 0 | F96: 0 | G96: =Таблица1[[#This Row],[Оплачено случаев]]-Таблица1[[#This Row],[План ДВН, чел.]] -> 0 | H96: =ROUND(Таблица1[[#This Row],[Оплачено случаев]]/Таблица1[[#This Row],[План ДВН, чел.]]*100,1) ->  | K96: 5.723754e-11
A97: Май | B97: ДВН | C97: КБ № 8 ФМБА | D97: 0 | E97: 0 | F97: 0 | G97: =Таблица1[[#This Row],[Оплачено случаев]]-Таблица1[[#This Row],[План ДВН, чел.]] -> 0 | H97: =ROUND(Таблица1[[#This Row],[Оплачено случаев]]/Таблица1[[#This Row],[План ДВН, чел.]]*100,1) ->  | K97: 8.8671668e-10
A98: Май | B98: ДВН | C98: ЦРБ Бабынинского района | D98: 0 | E98: 0 | F98: 0 | G98: =Таблица1[[#This Row],[Оплачено случаев]]-Таблица1[[#This Row],[План ДВН, чел.]] -> 0 | H98: =ROUND(Таблица1[[#This Row],[Оплачено случаев]]/Таблица1[[#This Row],[План ДВН, чел.]]*100,1) ->  | K98: 2.12319382e-09
A99: Май | B99: ДВН | C99: ЦРБ Боровского района | D99: 0 | E99: 0 | F99: 0 | G99: =Таблица1[[#This Row],[Оплачено случаев]]-Таблица1[[#This Row],[План ДВН, чел.]] -> 0 | H99: =ROUND(Таблица1[[#This Row],[Оплачено случаев]]/Таблица1[[#This Row],[План ДВН, чел.]]*100,1) ->  | K99: 1.35132464e-09
A100: Май | B100: ДВН | C100: ЦРБ Жуковского района | D100: 0 | E100: 0 | F100: 0 | G100: =Таблица1[[#This Row],[Оплачено случаев]]-Таблица1[[#This Row],[План ДВН, чел.]] -> 0 | H100: =ROUND(Таблица1[[#This Row],[Оплачено случаев]]/Таблица1[[#This Row],[План ДВН, чел.]]*100,1) ->  | K100: 1.7957885e-09
A101: Май | B101: ДВН | C101: ГП "Город Кременки" | D101: 0 | E101: 0 | F101: 0 | G101: =Таблица1[[#This Row],[Оплачено случаев]]-Таблица1[[#This Row],[План ДВН, чел.]] -> 0 | H101: =ROUND(Таблица1[[#This Row],[Оплачено случаев]]/Таблица1[[#This Row],[План ДВН, чел.]]*100,1) ->  | K101: 0
A102: Май | B102: ДВН | C102: ЦРБ Малоярославецкого района | D102: 0 | E102: 0 | F102: 0 | G102: =Таблица1[[#This Row],[Оплачено случаев]]-Таблица1[[#This Row],[План ДВН, чел.]] -> 0 | H102: =ROUND(Таблица1[[#This Row],[Оплачено случаев]]/Таблица1[[#This Row],[План ДВН, чел.]]*100,1) ->  | K102: 0
A103: Май | B103: ДВН | C103: ЦРБ Тарусского района | D103: 0 | E103: 0 | F103: 0 | G103: =Таблица1[[#This Row],[Оплачено случаев]]-Таблица1[[#This Row],[План ДВН, чел.]] -> 0 | H103: =ROUND(Таблица1[[#This Row],[Оплачено случаев]]/Таблица1[[#This Row],[План ДВН, чел.]]*100,1) ->  | K103: 0
A104: Июнь | B104: ДВН | C104: ЦМБ № 1 | D104: =AI4 -> 0 | E104: =AJ4 -> 0 | F104: =AK4 -> 0 | G104: =Таблица1[[#This Row],[Оплачено случаев]]-Таблица1[[#This Row],[План ДВН, чел.]] -> 0 | H104: =ROUND(Таблица1[[#This Row],[Оплачено случаев]]/Таблица1[[#This Row],[План ДВН, чел.]]*100,1) ->  | K104: =K83/1000 -> 8.3781544e-10
A105: Июнь | B105: ДВН | C105: ЦМБ № 2 | D105: 0 | E105: 0 | F105: 0 | G105: =Таблица1[[#This Row],[Оплачено случаев]]-Таблица1[[#This Row],[План ДВН, чел.]] -> 0 | H105: =ROUND(Таблица1[[#This Row],[Оплачено случаев]]/Таблица1[[#This Row],[План ДВН, чел.]]*100,1) ->  | K105: =#REF!/1000 -> 
A106: Июнь | B106: ДВН | C106: ЦМБ № 3 | D106: 0 | E106: 0 | F106: 0 | G106: =Таблица1[[#This Row],[Оплачено случаев]]-Таблица1[[#This Row],[План ДВН, чел.]] -> 0 | H106: =ROUND(Таблица1[[#This Row],[Оплачено случаев]]/Таблица1[[#This Row],[План ДВН, чел.]]*100,1) ->  | K106: =K84/1000 -> 7.4074642e-10
A107: Июнь | B107: ДВН | C107: ЦМБ № 4 | D107: 0 | E107: 0 | F107: 0 | G107: =Таблица1[[#This Row],[Оплачено случаев]]-Таблица1[[#This Row],[План ДВН, чел.]] -> 0 | H107: =ROUND(Таблица1[[#This Row],[Оплачено случаев]]/Таблица1[[#This Row],[План ДВН, чел.]]*100,1) -> 
A108: Июнь | B108: ДВН | C108: ЦМБ № 5 | D108: 0 | E108: 0 | F108: 0 | G108: =Таблица1[[#This Row],[Оплачено случаев]]-Таблица1[[#This Row],[План ДВН, чел.]] -> 0 | H108: =ROUND(Таблица1[[#This Row],[Оплачено случаев]]/Таблица1[[#This Row],[План ДВН, чел.]]*100,1) ->  | K108: 5.784166e-11
A109: Июнь | B109: ДВН | C109: ЦМБ № 6 | D109: 0 | E109: 0 | F109: 0 | G109: =Таблица1[[#This Row],[Оплачено случаев]]-Таблица1[[#This Row],[План ДВН, чел.]] -> 0 | H109: =ROUND(Таблица1[[#This Row],[Оплачено случаев]]/Таблица1[[#This Row],[План ДВН, чел.]]*100,1) -> 
A110: Июнь | B110: ДВН | C110: КГБ № 5 | D110: 0 | E110: 0 | F110: 0 | G110: =Таблица1[[#This Row],[Оплачено случаев]]-Таблица1[[#This Row],[План ДВН, чел.]] -> 0 | H110: =ROUND(Таблица1[[#This Row],[Оплачено случаев]]/Таблица1[[#This Row],[План ДВН, чел.]]*100,1) ->  | K110: 4.5220736e-10
A111: Июнь | B111: ДВН | C111: КГКБ № 4 | D111: 0 | E111: 0 | F111: 0 | G111: =Таблица1[[#This Row],[Оплачено случаев]]-Таблица1[[#This Row],[План ДВН, чел.]] -> 0 | H111: =ROUND(Таблица1[[#This Row],[Оплачено случаев]]/Таблица1[[#This Row],[План ДВН, чел.]]*100,1) ->  | K111: 1.3082168e-10
A112: Июнь | B112: ДВН | C112: Городская поликлиника | D112: 0 | E112: 0 | F112: 0 | G112: =Таблица1[[#This Row],[Оплачено случаев]]-Таблица1[[#This Row],[План ДВН, чел.]] -> 0 | H112: =ROUND(Таблица1[[#This Row],[Оплачено случаев]]/Таблица1[[#This Row],[План ДВН, чел.]]*100,1) ->  | K112: 1.141141472e-08
A113: Июнь | B113: ДВН | C113: МСЧ № 1 г. Калуги | D113: 0 | E113: 0 | F113: 0 | G113: =Таблица1[[#This Row],[Оплачено случаев]]-Таблица1[[#This Row],[План ДВН, чел.]] -> 0 | H113: =ROUND(Таблица1[[#This Row],[Оплачено случаев]]/Таблица1[[#This Row],[План ДВН, чел.]]*100,1) ->  | K113: 0
A114: Июнь | B114: ДВН | C114: МСЧ № 2 г. Калуги | D114: 0 | E114: 0 | F114: 0 | G114: =Таблица1[[#This Row],[Оплачено случаев]]-Таблица1[[#This Row],[План ДВН, чел.]] -> 0 | H114: =ROUND(Таблица1[[#This Row],[Оплачено случаев]]/Таблица1[[#This Row],[План ДВН, чел.]]*100,1) ->  | K114: 2.066413e-13
A115: Июнь | B115: ДВН | C115: МСЧ МВД | D115: 0 | E115: 0 | F115: 0 | G115: =Таблица1[[#This Row],[Оплачено случаев]]-Таблица1[[#This Row],[План ДВН, чел.]] -> 0 | H115: =ROUND(Таблица1[[#This Row],[Оплачено случаев]]/Таблица1[[#This Row],[План ДВН, чел.]]*100,1) ->  | K115: 1.51867436e-12
A116: Июнь | B116: ДВН | C116: ЧУЗ "Больница "РЖД - Медицина" | D116: 0 | E116: 0 | F116: 0 | G116: =Таблица1[[#This Row],[Оплачено случаев]]-Таблица1[[#This Row],[План ДВН, чел.]] -> 0 | H116: =ROUND(Таблица1[[#This Row],[Оплачено случаев]]/Таблица1[[#This Row],[План ДВН, чел.]]*100,1) ->  | K116: 4.36834e-13
A117: Июнь | B117: ДВН | C117: КБ № 8 ФМБА | D117: 0 | E117: 0 | F117: 0 | G117: =Таблица1[[#This Row],[Оплачено случаев]]-Таблица1[[#This Row],[План ДВН, чел.]] -> 0 | H117: =ROUND(Таблица1[[#This Row],[Оплачено случаев]]/Таблица1[[#This Row],[План ДВН, чел.]]*100,1) ->  | K117: 2.1081924e-13
A118: Июнь | B118: ДВН | C118: ЦРБ Бабынинского района | D118: 0 | E118: 0 | F118: 0 | G118: =Таблица1[[#This Row],[Оплачено случаев]]-Таблица1[[#This Row],[План ДВН, чел.]] -> 0 | H118: =ROUND(Таблица1[[#This Row],[Оплачено случаев]]/Таблица1[[#This Row],[План ДВН, чел.]]*100,1) ->  | K118: 5.723754e-14
A119: Июнь | B119: ДВН | C119: ЦРБ Боровского района | D119: 0 | E119: 0 | F119: 0 | G119: =Таблица1[[#This Row],[Оплачено случаев]]-Таблица1[[#This Row],[План ДВН, чел.]] -> 0 | H119: =ROUND(Таблица1[[#This Row],[Оплачено случаев]]/Таблица1[[#This Row],[План ДВН, чел.]]*100,1) ->  | K119: 8.8671668e-13
A120: Июнь | B120: ДВН | C120: ЦРБ Жуковского района | D120: 0 | E120: 0 | F120: 0 | G120: =Таблица1[[#This Row],[Оплачено случаев]]-Таблица1[[#This Row],[План ДВН, чел.]] -> 0 | H120: =ROUND(Таблица1[[#This Row],[Оплачено случаев]]/Таблица1[[#This Row],[План ДВН, чел.]]*100,1) ->  | K120: 2.12319382e-12
A121: Июнь | B121: ДВН | C121: ГП "Город Кременки" | D121: 0 | E121: 0 | F121: 0 | G121: =Таблица1[[#This Row],[Оплачено случаев]]-Таблица1[[#This Row],[План ДВН, чел.]] -> 0 | H121: =ROUND(Таблица1[[#This Row],[Оплачено случаев]]/Таблица1[[#This Row],[План ДВН, чел.]]*100,1) ->  | K121: 1.35132464e-12
A122: Июнь | B122: ДВН | C122: ЦРБ Малоярославецкого района | D122: 0 | E122: 0 | F122: 0 | G122: =Таблица1[[#This Row],[Оплачено случаев]]-Таблица1[[#This Row],[План ДВН, чел.]] -> 0 | H122: =ROUND(Таблица1[[#This Row],[Оплачено случаев]]/Таблица1[[#This Row],[План ДВН, чел.]]*100,1) ->  | K122: 1.7957885e-12
A123: Июнь | B123: ДВН | C123: ЦРБ Тарусского района | D123: 0 | E123: 0 | F123: 0 | G123: =Таблица1[[#This Row],[Оплачено случаев]]-Таблица1[[#This Row],[План ДВН, чел.]] -> 0 | H123: =ROUND(Таблица1[[#This Row],[Оплачено случаев]]/Таблица1[[#This Row],[План ДВН, чел.]]*100,1) ->  | K123: 0
A124: Июль | B124: ДВН | C124: ЦМБ № 1 | D124: =AN4 -> 0 | E124: =AO4 -> 0 | F124: =AP4 -> 0 | G124: =Таблица1[[#This Row],[Оплачено случаев]]-Таблица1[[#This Row],[План ДВН, чел.]] -> 0 | H124: =ROUND(Таблица1[[#This Row],[Оплачено случаев]]/Таблица1[[#This Row],[План ДВН, чел.]]*100,1) ->  | K124: =K103/1000 -> 0
A125: Июль | B125: ДВН | C125: ЦМБ № 2 | D125: 0 | E125: 0 | F125: 0 | G125: =Таблица1[[#This Row],[Оплачено случаев]]-Таблица1[[#This Row],[План ДВН, чел.]] -> 0 | H125: =ROUND(Таблица1[[#This Row],[Оплачено случаев]]/Таблица1[[#This Row],[План ДВН, чел.]]*100,1) ->  | K125: =#REF!/1000 -> 
A126: Июль | B126: ДВН | C126: ЦМБ № 3 | D126: 0 | E126: 0 | F126: 0 | G126: =Таблица1[[#This Row],[Оплачено случаев]]-Таблица1[[#This Row],[План ДВН, чел.]] -> 0 | H126: =ROUND(Таблица1[[#This Row],[Оплачено случаев]]/Таблица1[[#This Row],[План ДВН, чел.]]*100,1) ->  | K126: =K104/1000 -> 8.3781544e-13
A127: Июль | B127: ДВН | C127: ЦМБ № 4 | D127: 0 | E127: 0 | F127: 0 | G127: =Таблица1[[#This Row],[Оплачено случаев]]-Таблица1[[#This Row],[План ДВН, чел.]] -> 0 | H127: =ROUND(Таблица1[[#This Row],[Оплачено случаев]]/Таблица1[[#This Row],[План ДВН, чел.]]*100,1) -> 
A128: Июль | B128: ДВН | C128: ЦМБ № 5 | D128: 0 | E128: 0 | F128: 0 | G128: =Таблица1[[#This Row],[Оплачено случаев]]-Таблица1[[#This Row],[План ДВН, чел.]] -> 0 | H128: =ROUND(Таблица1[[#This Row],[Оплачено случаев]]/Таблица1[[#This Row],[План ДВН, чел.]]*100,1) ->  | K128: 7.4074642e-13
A129: Июль | B129: ДВН | C129: ЦМБ № 6 | D129: 0 | E129: 0 | F129: 0 | G129: =Таблица1[[#This Row],[Оплачено случаев]]-Таблица1[[#This Row],[План ДВН, чел.]] -> 0 | H129: =ROUND(Таблица1[[#This Row],[Оплачено случаев]]/Таблица1[[#This Row],[План ДВН, чел.]]*100,1) -> 
A130: Июль | B130: ДВН | C130: КГБ № 5 | D130: 0 | E130: 0 | F130: 0 | G130: =Таблица1[[#This Row],[Оплачено случаев]]-Таблица1[[#This Row],[План ДВН, чел.]] -> 0 | H130: =ROUND(Таблица1[[#This Row],[Оплачено случаев]]/Таблица1[[#This Row],[План ДВН, чел.]]*100,1) ->  | K130: 5.784166e-14
A131: Июль | B131: ДВН | C131: КГКБ № 4 | D131: 0 | E131: 0 | F131: 0 | G131: =Таблица1[[#This Row],[Оплачено случаев]]-Таблица1[[#This Row],[План ДВН, чел.]] -> 0 | H131: =ROUND(Таблица1[[#This Row],[Оплачено случаев]]/Таблица1[[#This Row],[План ДВН, чел.]]*100,1) -> 
A132: Июль | B132: ДВН | C132: Городская поликлиника | D132: 0 | E132: 0 | F132: 0 | G132: =Таблица1[[#This Row],[Оплачено случаев]]-Таблица1[[#This Row],[План ДВН, чел.]] -> 0 | H132: =ROUND(Таблица1[[#This Row],[Оплачено случаев]]/Таблица1[[#This Row],[План ДВН, чел.]]*100,1) ->  | K132: 4.5220736e-13
A133: Июль | B133: ДВН | C133: МСЧ № 1 г. Калуги | D133: 0 | E133: 0 | F133: 0 | G133: =Таблица1[[#This Row],[Оплачено случаев]]-Таблица1[[#This Row],[План ДВН, чел.]] -> 0 | H133: =ROUND(Таблица1[[#This Row],[Оплачено случаев]]/Таблица1[[#This Row],[План ДВН, чел.]]*100,1) ->  | K133: 1.3082168e-13
A134: Июль | B134: ДВН | C134: МСЧ № 2 г. Калуги | D134: 0 | E134: 0 | F134: 0 | G134: =Таблица1[[#This Row],[Оплачено случаев]]-Таблица1[[#This Row],[План ДВН, чел.]] -> 0 | H134: =ROUND(Таблица1[[#This Row],[Оплачено случаев]]/Таблица1[[#This Row],[План ДВН, чел.]]*100,1) ->  | K134: 1.141141472e-11
A135: Июль | B135: ДВН | C135: МСЧ МВД | D135: 0 | E135: 0 | F135: 0 | G135: =Таблица1[[#This Row],[Оплачено случаев]]-Таблица1[[#This Row],[План ДВН, чел.]] -> 0 | H135: =ROUND(Таблица1[[#This Row],[Оплачено случаев]]/Таблица1[[#This Row],[План ДВН, чел.]]*100,1) ->  | K135: 0
A136: Июль | B136: ДВН | C136: ЧУЗ "Больница "РЖД - Медицина" | D136: 0 | E136: 0 | F136: 0 | G136: =Таблица1[[#This Row],[Оплачено случаев]]-Таблица1[[#This Row],[План ДВН, чел.]] -> 0 | H136: =ROUND(Таблица1[[#This Row],[Оплачено случаев]]/Таблица1[[#This Row],[План ДВН, чел.]]*100,1) ->  | K136: 2.066413e-16
A137: Июль | B137: ДВН | C137: КБ № 8 ФМБА | D137: 0 | E137: 0 | F137: 0 | G137: =Таблица1[[#This Row],[Оплачено случаев]]-Таблица1[[#This Row],[План ДВН, чел.]] -> 0 | H137: =ROUND(Таблица1[[#This Row],[Оплачено случаев]]/Таблица1[[#This Row],[План ДВН, чел.]]*100,1) ->  | K137: 1.51867436e-15
A138: Июль | B138: ДВН | C138: ЦРБ Бабынинского района | D138: 0 | E138: 0 | F138: 0 | G138: =Таблица1[[#This Row],[Оплачено случаев]]-Таблица1[[#This Row],[План ДВН, чел.]] -> 0 | H138: =ROUND(Таблица1[[#This Row],[Оплачено случаев]]/Таблица1[[#This Row],[План ДВН, чел.]]*100,1) ->  | K138: 4.36834e-16
A139: Июль | B139: ДВН | C139: ЦРБ Боровского района | D139: 0 | E139: 0 | F139: 0 | G139: =Таблица1[[#This Row],[Оплачено случаев]]-Таблица1[[#This Row],[План ДВН, чел.]] -> 0 | H139: =ROUND(Таблица1[[#This Row],[Оплачено случаев]]/Таблица1[[#This Row],[План ДВН, чел.]]*100,1) ->  | K139: 2.1081924e-16
A140: Июль | B140: ДВН | C140: ЦРБ Жуковского района | D140: 0 | E140: 0 | F140: 0 | G140: =Таблица1[[#This Row],[Оплачено случаев]]-Таблица1[[#This Row],[План ДВН, чел.]] -> 0 | H140: =ROUND(Таблица1[[#This Row],[Оплачено случаев]]/Таблица1[[#This Row],[План ДВН, чел.]]*100,1) ->  | K140: 5.723754e-17
A141: Июль | B141: ДВН | C141: ГП "Город Кременки" | D141: 0 | E141: 0 | F141: 0 | G141: =Таблица1[[#This Row],[Оплачено случаев]]-Таблица1[[#This Row],[План ДВН, чел.]] -> 0 | H141: =ROUND(Таблица1[[#This Row],[Оплачено случаев]]/Таблица1[[#This Row],[План ДВН, чел.]]*100,1) ->  | K141: 8.8671668e-16
A142: Июль | B142: ДВН | C142: ЦРБ Малоярославецкого района | D142: 0 | E142: 0 | F142: 0 | G142: =Таблица1[[#This Row],[Оплачено случаев]]-Таблица1[[#This Row],[План ДВН, чел.]] -> 0 | H142: =ROUND(Таблица1[[#This Row],[Оплачено случаев]]/Таблица1[[#This Row],[План ДВН, чел.]]*100,1) ->  | K142: 2.12319382e-15
A143: Июль | B143: ДВН | C143: ЦРБ Тарусского района | D143: 0 | E143: 0 | F143: 0 | G143: =Таблица1[[#This Row],[Оплачено случаев]]-Таблица1[[#This Row],[План ДВН, чел.]] -> 0 | H143: =ROUND(Таблица1[[#This Row],[Оплачено случаев]]/Таблица1[[#This Row],[План ДВН, чел.]]*100,1) ->  | K143: 1.35132464e-15
A144: Август | B144: ДВН | C144: ЦМБ № 1 | D144: =AS4 -> 0 | E144: =AT4 -> 0 | F144: =AU4 -> 0 | G144: =Таблица1[[#This Row],[Оплачено случаев]]-Таблица1[[#This Row],[План ДВН, чел.]] -> 0 | H144: =ROUND(Таблица1[[#This Row],[Оплачено случаев]]/Таблица1[[#This Row],[План ДВН, чел.]]*100,1) -> 
A145: Август | B145: ДВН | C145: ЦМБ № 2 | D145: 0 | E145: 0 | F145: 0 | G145: =Таблица1[[#This Row],[Оплачено случаев]]-Таблица1[[#This Row],[План ДВН, чел.]] -> 0 | H145: =ROUND(Таблица1[[#This Row],[Оплачено случаев]]/Таблица1[[#This Row],[План ДВН, чел.]]*100,1) -> 
A146: Август | B146: ДВН | C146: ЦМБ № 3 | D146: 0 | E146: 0 | F146: 0 | G146: =Таблица1[[#This Row],[Оплачено случаев]]-Таблица1[[#This Row],[План ДВН, чел.]] -> 0 | H146: =ROUND(Таблица1[[#This Row],[Оплачено случаев]]/Таблица1[[#This Row],[План ДВН, чел.]]*100,1) -> 
A147: Август | B147: ДВН | C147: ЦМБ № 4 | D147: 0 | E147: 0 | F147: 0 | G147: =Таблица1[[#This Row],[Оплачено случаев]]-Таблица1[[#This Row],[План ДВН, чел.]] -> 0 | H147: =ROUND(Таблица1[[#This Row],[Оплачено случаев]]/Таблица1[[#This Row],[План ДВН, чел.]]*100,1) -> 
A148: Август | B148: ДВН | C148: ЦМБ № 5 | D148: 0 | E148: 0 | F148: 0 | G148: =Таблица1[[#This Row],[Оплачено случаев]]-Таблица1[[#This Row],[План ДВН, чел.]] -> 0 | H148: =ROUND(Таблица1[[#This Row],[Оплачено случаев]]/Таблица1[[#This Row],[План ДВН, чел.]]*100,1) -> 
A149: Август | B149: ДВН | C149: ЦМБ № 6 | D149: 0 | E149: 0 | F149: 0 | G149: =Таблица1[[#This Row],[Оплачено случаев]]-Таблица1[[#This Row],[План ДВН, чел.]] -> 0 | H149: =ROUND(Таблица1[[#This Row],[Оплачено случаев]]/Таблица1[[#This Row],[План ДВН, чел.]]*100,1) -> 
A150: Август | B150: ДВН | C150: КГБ № 5 | D150: 0 | E150: 0 | F150: 0 | G150: =Таблица1[[#This Row],[Оплачено случаев]]-Таблица1[[#This Row],[План ДВН, чел.]] -> 0 | H150: =ROUND(Таблица1[[#This Row],[Оплачено случаев]]/Таблица1[[#This Row],[План ДВН, чел.]]*100,1) -> 
A151: Август | B151: ДВН | C151: КГКБ № 4 | D151: 0 | E151: 0 | F151: 0 | G151: =Таблица1[[#This Row],[Оплачено случаев]]-Таблица1[[#This Row],[План ДВН, чел.]] -> 0 | H151: =ROUND(Таблица1[[#This Row],[Оплачено случаев]]/Таблица1[[#This Row],[План ДВН, чел.]]*100,1) -> 
A152: Август | B152: ДВН | C152: Городская поликлиника | D152: 0 | E152: 0 | F152: 0 | G152: =Таблица1[[#This Row],[Оплачено случаев]]-Таблица1[[#This Row],[План ДВН, чел.]] -> 0 | H152: =ROUND(Таблица1[[#This Row],[Оплачено случаев]]/Таблица1[[#This Row],[План ДВН, чел.]]*100,1) -> 
A153: Август | B153: ДВН | C153: МСЧ № 1 г. Калуги | D153: 0 | E153: 0 | F153: 0 | G153: =Таблица1[[#This Row],[Оплачено случаев]]-Таблица1[[#This Row],[План ДВН, чел.]] -> 0 | H153: =ROUND(Таблица1[[#This Row],[Оплачено случаев]]/Таблица1[[#This Row],[План ДВН, чел.]]*100,1) -> 
A154: Август | B154: ДВН | C154: МСЧ № 2 г. Калуги | D154: 0 | E154: 0 | F154: 0 | G154: =Таблица1[[#This Row],[Оплачено случаев]]-Таблица1[[#This Row],[План ДВН, чел.]] -> 0 | H154: =ROUND(Таблица1[[#This Row],[Оплачено случаев]]/Таблица1[[#This Row],[План ДВН, чел.]]*100,1) -> 
A155: Август | B155: ДВН | C155: МСЧ МВД | D155: 0 | E155: 0 | F155: 0 | G155: =Таблица1[[#This Row],[Оплачено случаев]]-Таблица1[[#This Row],[План ДВН, чел.]] -> 0 | H155: =ROUND(Таблица1[[#This Row],[Оплачено случаев]]/Таблица1[[#This Row],[План ДВН, чел.]]*100,1) -> 
A156: Август | B156: ДВН | C156: ЧУЗ "Больница "РЖД - Медицина" | D156: 0 | E156: 0 | F156: 0 | G156: =Таблица1[[#This Row],[Оплачено случаев]]-Таблица1[[#This Row],[План ДВН, чел.]] -> 0 | H156: =ROUND(Таблица1[[#This Row],[Оплачено случаев]]/Таблица1[[#This Row],[План ДВН, чел.]]*100,1) -> 
A157: Август | B157: ДВН | C157: КБ № 8 ФМБА | D157: 0 | E157: 0 | F157: 0 | G157: =Таблица1[[#This Row],[Оплачено случаев]]-Таблица1[[#This Row],[План ДВН, чел.]] -> 0 | H157: =ROUND(Таблица1[[#This Row],[Оплачено случаев]]/Таблица1[[#This Row],[План ДВН, чел.]]*100,1) -> 
A158: Август | B158: ДВН | C158: ЦРБ Бабынинского района | D158: 0 | E158: 0 | F158: 0 | G158: =Таблица1[[#This Row],[Оплачено случаев]]-Таблица1[[#This Row],[План ДВН, чел.]] -> 0 | H158: =ROUND(Таблица1[[#This Row],[Оплачено случаев]]/Таблица1[[#This Row],[План ДВН, чел.]]*100,1) -> 
A159: Август | B159: ДВН | C159: ЦРБ Боровского района | D159: 0 | E159: 0 | F159: 0 | G159: =Таблица1[[#This Row],[Оплачено случаев]]-Таблица1[[#This Row],[План ДВН, чел.]] -> 0 | H159: =ROUND(Таблица1[[#This Row],[Оплачено случаев]]/Таблица1[[#This Row],[План ДВН, чел.]]*100,1) -> 
A160: Август | B160: ДВН | C160: ЦРБ Жуковского района | D160: 0 | E160: 0 | F160: 0 | G160: =Таблица1[[#This Row],[Оплачено случаев]]-Таблица1[[#This Row],[План ДВН, чел.]] -> 0 | H160: =ROUND(Таблица1[[#This Row],[Оплачено случаев]]/Таблица1[[#This Row],[План ДВН, чел.]]*100,1) -> 
A161: Август | B161: ДВН | C161: ГП "Город Кременки" | D161: 0 | E161: 0 | F161: 0 | G161: =Таблица1[[#This Row],[Оплачено случаев]]-Таблица1[[#This Row],[План ДВН, чел.]] -> 0 | H161: =ROUND(Таблица1[[#This Row],[Оплачено случаев]]/Таблица1[[#This Row],[План ДВН, чел.]]*100,1) -> 
A162: Август | B162: ДВН | C162: ЦРБ Малоярославецкого района | D162: 0 | E162: 0 | F162: 0 | G162: =Таблица1[[#This Row],[Оплачено случаев]]-Таблица1[[#This Row],[План ДВН, чел.]] -> 0 | H162: =ROUND(Таблица1[[#This Row],[Оплачено случаев]]/Таблица1[[#This Row],[План ДВН, чел.]]*100,1) -> 
A163: Август | B163: ДВН | C163: ЦРБ Тарусского района | D163: 0 | E163: 0 | F163: 0 | G163: =Таблица1[[#This Row],[Оплачено случаев]]-Таблица1[[#This Row],[План ДВН, чел.]] -> 0 | H163: =ROUND(Таблица1[[#This Row],[Оплачено случаев]]/Таблица1[[#This Row],[План ДВН, чел.]]*100,1) -> 
A164: Сентябрь | B164: ДВН | C164: ЦМБ № 1 | D164: =AX4 -> 0 | E164: =AY4 -> 0 | F164: =AZ4 -> 0 | G164: =Таблица1[[#This Row],[Оплачено случаев]]-Таблица1[[#This Row],[План ДВН, чел.]] -> 0 | H164: =ROUND(Таблица1[[#This Row],[Оплачено случаев]]/Таблица1[[#This Row],[План ДВН, чел.]]*100,1) -> 
A165: Сентябрь | B165: ДВН | C165: ЦМБ № 2 | D165: 0 | E165: 0 | F165: 0 | G165: =Таблица1[[#This Row],[Оплачено случаев]]-Таблица1[[#This Row],[План ДВН, чел.]] -> 0 | H165: =ROUND(Таблица1[[#This Row],[Оплачено случаев]]/Таблица1[[#This Row],[План ДВН, чел.]]*100,1) -> 
A166: Сентябрь | B166: ДВН | C166: ЦМБ № 3 | D166: 0 | E166: 0 | F166: 0 | G166: =Таблица1[[#This Row],[Оплачено случаев]]-Таблица1[[#This Row],[План ДВН, чел.]] -> 0 | H166: =ROUND(Таблица1[[#This Row],[Оплачено случаев]]/Таблица1[[#This Row],[План ДВН, чел.]]*100,1) -> 
A167: Сентябрь | B167: ДВН | C167: ЦМБ № 4 | D167: 0 | E167: 0 | F167: 0 | G167: =Таблица1[[#This Row],[Оплачено случаев]]-Таблица1[[#This Row],[План ДВН, чел.]] -> 0 | H167: =ROUND(Таблица1[[#This Row],[Оплачено случаев]]/Таблица1[[#This Row],[План ДВН, чел.]]*100,1) -> 
A168: Сентябрь | B168: ДВН | C168: ЦМБ № 5 | D168: 0 | E168: 0 | F168: 0 | G168: =Таблица1[[#This Row],[Оплачено случаев]]-Таблица1[[#This Row],[План ДВН, чел.]] -> 0 | H168: =ROUND(Таблица1[[#This Row],[Оплачено случаев]]/Таблица1[[#This Row],[План ДВН, чел.]]*100,1) -> 
A169: Сентябрь | B169: ДВН | C169: ЦМБ № 6 | D169: 0 | E169: 0 | F169: 0 | G169: =Таблица1[[#This Row],[Оплачено случаев]]-Таблица1[[#This Row],[План ДВН, чел.]] -> 0 | H169: =ROUND(Таблица1[[#This Row],[Оплачено случаев]]/Таблица1[[#This Row],[План ДВН, чел.]]*100,1) -> 
A170: Сентябрь | B170: ДВН | C170: КГБ № 5 | D170: 0 | E170: 0 | F170: 0 | G170: =Таблица1[[#This Row],[Оплачено случаев]]-Таблица1[[#This Row],[План ДВН, чел.]] -> 0 | H170: =ROUND(Таблица1[[#This Row],[Оплачено случаев]]/Таблица1[[#This Row],[План ДВН, чел.]]*100,1) -> 
A171: Сентябрь | B171: ДВН | C171: КГКБ № 4 | D171: 0 | E171: 0 | F171: 0 | G171: =Таблица1[[#This Row],[Оплачено случаев]]-Таблица1[[#This Row],[План ДВН, чел.]] -> 0 | H171: =ROUND(Таблица1[[#This Row],[Оплачено случаев]]/Таблица1[[#This Row],[План ДВН, чел.]]*100,1) -> 
A172: Сентябрь | B172: ДВН | C172: Городская поликлиника | D172: 0 | E172: 0 | F172: 0 | G172: =Таблица1[[#This Row],[Оплачено случаев]]-Таблица1[[#This Row],[План ДВН, чел.]] -> 0 | H172: =ROUND(Таблица1[[#This Row],[Оплачено случаев]]/Таблица1[[#This Row],[План ДВН, чел.]]*100,1) -> 
A173: Сентябрь | B173: ДВН | C173: МСЧ № 1 г. Калуги | D173: 0 | E173: 0 | F173: 0 | G173: =Таблица1[[#This Row],[Оплачено случаев]]-Таблица1[[#This Row],[План ДВН, чел.]] -> 0 | H173: =ROUND(Таблица1[[#This Row],[Оплачено случаев]]/Таблица1[[#This Row],[План ДВН, чел.]]*100,1) -> 
A174: Сентябрь | B174: ДВН | C174: МСЧ № 2 г. Калуги | D174: 0 | E174: 0 | F174: 0 | G174: =Таблица1[[#This Row],[Оплачено случаев]]-Таблица1[[#This Row],[План ДВН, чел.]] -> 0 | H174: =ROUND(Таблица1[[#This Row],[Оплачено случаев]]/Таблица1[[#This Row],[План ДВН, чел.]]*100,1) -> 
A175: Сентябрь | B175: ДВН | C175: МСЧ МВД | D175: 0 | E175: 0 | F175: 0 | G175: =Таблица1[[#This Row],[Оплачено случаев]]-Таблица1[[#This Row],[План ДВН, чел.]] -> 0 | H175: =ROUND(Таблица1[[#This Row],[Оплачено случаев]]/Таблица1[[#This Row],[План ДВН, чел.]]*100,1) -> 
A176: Сентябрь | B176: ДВН | C176: ЧУЗ "Больница "РЖД - Медицина" | D176: 0 | E176: 0 | F176: 0 | G176: =Таблица1[[#This Row],[Оплачено случаев]]-Таблица1[[#This Row],[План ДВН, чел.]] -> 0 | H176: =ROUND(Таблица1[[#This Row],[Оплачено случаев]]/Таблица1[[#This Row],[План ДВН, чел.]]*100,1) -> 
A177: Сентябрь | B177: ДВН | C177: КБ № 8 ФМБА | D177: 0 | E177: 0 | F177: 0 | G177: =Таблица1[[#This Row],[Оплачено случаев]]-Таблица1[[#This Row],[План ДВН, чел.]] -> 0 | H177: =ROUND(Таблица1[[#This Row],[Оплачено случаев]]/Таблица1[[#This Row],[План ДВН, чел.]]*100,1) -> 
A178: Сентябрь | B178: ДВН | C178: ЦРБ Бабынинского района | D178: 0 | E178: 0 | F178: 0 | G178: =Таблица1[[#This Row],[Оплачено случаев]]-Таблица1[[#This Row],[План ДВН, чел.]] -> 0 | H178: =ROUND(Таблица1[[#This Row],[Оплачено случаев]]/Таблица1[[#This Row],[План ДВН, чел.]]*100,1) -> 
A179: Сентябрь | B179: ДВН | C179: ЦРБ Боровского района | D179: 0 | E179: 0 | F179: 0 | G179: =Таблица1[[#This Row],[Оплачено случаев]]-Таблица1[[#This Row],[План ДВН, чел.]] -> 0 | H179: =ROUND(Таблица1[[#This Row],[Оплачено случаев]]/Таблица1[[#This Row],[План ДВН, чел.]]*100,1) -> 
A180: Сентябрь | B180: ДВН | C180: ЦРБ Жуковского района | D180: 0 | E180: 0 | F180: 0 | G180: =Таблица1[[#This Row],[Оплачено случаев]]-Таблица1[[#This Row],[План ДВН, чел.]] -> 0 | H180: =ROUND(Таблица1[[#This Row],[Оплачено случаев]]/Таблица1[[#This Row],[План ДВН, чел.]]*100,1) -> 
A181: Сентябрь | B181: ДВН | C181: ГП "Город Кременки" | D181: 0 | E181: 0 | F181: 0 | G181: =Таблица1[[#This Row],[Оплачено случаев]]-Таблица1[[#This Row],[План ДВН, чел.]] -> 0 | H181: =ROUND(Таблица1[[#This Row],[Оплачено случаев]]/Таблица1[[#This Row],[План ДВН, чел.]]*100,1) -> 
A182: Сентябрь | B182: ДВН | C182: ЦРБ Малоярославецкого района | D182: 0 | E182: 0 | F182: 0 | G182: =Таблица1[[#This Row],[Оплачено случаев]]-Таблица1[[#This Row],[План ДВН, чел.]] -> 0 | H182: =ROUND(Таблица1[[#This Row],[Оплачено случаев]]/Таблица1[[#This Row],[План ДВН, чел.]]*100,1) -> 
A183: Сентябрь | B183: ДВН | C183: ЦРБ Тарусского района | D183: 0 | E183: 0 | F183: 0 | G183: =Таблица1[[#This Row],[Оплачено случаев]]-Таблица1[[#This Row],[План ДВН, чел.]] -> 0 | H183: =ROUND(Таблица1[[#This Row],[Оплачено случаев]]/Таблица1[[#This Row],[План ДВН, чел.]]*100,1) -> 
A184: Октябрь | B184: ДВН | C184: ЦМБ № 1 | D184: =BC4 -> 0 | E184: =BD4 -> 0 | F184: =BE4 -> 0 | G184: =Таблица1[[#This Row],[Оплачено случаев]]-Таблица1[[#This Row],[План ДВН, чел.]] -> 0 | H184: =ROUND(Таблица1[[#This Row],[Оплачено случаев]]/Таблица1[[#This Row],[План ДВН, чел.]]*100,1) -> 
A185: Октябрь | B185: ДВН | C185: ЦМБ № 2 | D185: 0 | E185: 0 | F185: 0 | G185: =Таблица1[[#This Row],[Оплачено случаев]]-Таблица1[[#This Row],[План ДВН, чел.]] -> 0 | H185: =ROUND(Таблица1[[#This Row],[Оплачено случаев]]/Таблица1[[#This Row],[План ДВН, чел.]]*100,1) -> 
A186: Октябрь | B186: ДВН | C186: ЦМБ № 3 | D186: 0 | E186: 0 | F186: 0 | G186: =Таблица1[[#This Row],[Оплачено случаев]]-Таблица1[[#This Row],[План ДВН, чел.]] -> 0 | H186: =ROUND(Таблица1[[#This Row],[Оплачено случаев]]/Таблица1[[#This Row],[План ДВН, чел.]]*100,1) -> 
A187: Октябрь | B187: ДВН | C187: ЦМБ № 4 | D187: 0 | E187: 0 | F187: 0 | G187: =Таблица1[[#This Row],[Оплачено случаев]]-Таблица1[[#This Row],[План ДВН, чел.]] -> 0 | H187: =ROUND(Таблица1[[#This Row],[Оплачено случаев]]/Таблица1[[#This Row],[План ДВН, чел.]]*100,1) -> 
A188: Октябрь | B188: ДВН | C188: ЦМБ № 5 | D188: 0 | E188: 0 | F188: 0 | G188: =Таблица1[[#This Row],[Оплачено случаев]]-Таблица1[[#This Row],[План ДВН, чел.]] -> 0 | H188: =ROUND(Таблица1[[#This Row],[Оплачено случаев]]/Таблица1[[#This Row],[План ДВН, чел.]]*100,1) -> 
A189: Октябрь | B189: ДВН | C189: ЦМБ № 6 | D189: 0 | E189: 0 | F189: 0 | G189: =Таблица1[[#This Row],[Оплачено случаев]]-Таблица1[[#This Row],[План ДВН, чел.]] -> 0 | H189: =ROUND(Таблица1[[#This Row],[Оплачено случаев]]/Таблица1[[#This Row],[План ДВН, чел.]]*100,1) -> 
A190: Октябрь | B190: ДВН | C190: КГБ № 5 | D190: 0 | E190: 0 | F190: 0 | G190: =Таблица1[[#This Row],[Оплачено случаев]]-Таблица1[[#This Row],[План ДВН, чел.]] -> 0 | H190: =ROUND(Таблица1[[#This Row],[Оплачено случаев]]/Таблица1[[#This Row],[План ДВН, чел.]]*100,1) -> 
A191: Октябрь | B191: ДВН | C191: КГКБ № 4 | D191: 0 | E191: 0 | F191: 0 | G191: =Таблица1[[#This Row],[Оплачено случаев]]-Таблица1[[#This Row],[План ДВН, чел.]] -> 0 | H191: =ROUND(Таблица1[[#This Row],[Оплачено случаев]]/Таблица1[[#This Row],[План ДВН, чел.]]*100,1) -> 
A192: Октябрь | B192: ДВН | C192: Городская поликлиника | D192: 0 | E192: 0 | F192: 0 | G192: =Таблица1[[#This Row],[Оплачено случаев]]-Таблица1[[#This Row],[План ДВН, чел.]] -> 0 | H192: =ROUND(Таблица1[[#This Row],[Оплачено случаев]]/Таблица1[[#This Row],[План ДВН, чел.]]*100,1) -> 
A193: Октябрь | B193: ДВН | C193: МСЧ № 1 г. Калуги | D193: 0 | E193: 0 | F193: 0 | G193: =Таблица1[[#This Row],[Оплачено случаев]]-Таблица1[[#This Row],[План ДВН, чел.]] -> 0 | H193: =ROUND(Таблица1[[#This Row],[Оплачено случаев]]/Таблица1[[#This Row],[План ДВН, чел.]]*100,1) -> 
A194: Октябрь | B194: ДВН | C194: МСЧ № 2 г. Калуги | D194: 0 | E194: 0 | F194: 0 | G194: =Таблица1[[#This Row],[Оплачено случаев]]-Таблица1[[#This Row],[План ДВН, чел.]] -> 0 | H194: =ROUND(Таблица1[[#This Row],[Оплачено случаев]]/Таблица1[[#This Row],[План ДВН, чел.]]*100,1) -> 
A195: Октябрь | B195: ДВН | C195: МСЧ МВД | D195: 0 | E195: 0 | F195: 0 | G195: =Таблица1[[#This Row],[Оплачено случаев]]-Таблица1[[#This Row],[План ДВН, чел.]] -> 0 | H195: =ROUND(Таблица1[[#This Row],[Оплачено случаев]]/Таблица1[[#This Row],[План ДВН, чел.]]*100,1) -> 
A196: Октябрь | B196: ДВН | C196: ЧУЗ "Больница "РЖД - Медицина" | D196: 0 | E196: 0 | F196: 0 | G196: =Таблица1[[#This Row],[Оплачено случаев]]-Таблица1[[#This Row],[План ДВН, чел.]] -> 0 | H196: =ROUND(Таблица1[[#This Row],[Оплачено случаев]]/Таблица1[[#This Row],[План ДВН, чел.]]*100,1) -> 
A197: Октябрь | B197: ДВН | C197: КБ № 8 ФМБА | D197: 0 | E197: 0 | F197: 0 | G197: =Таблица1[[#This Row],[Оплачено случаев]]-Таблица1[[#This Row],[План ДВН, чел.]] -> 0 | H197: =ROUND(Таблица1[[#This Row],[Оплачено случаев]]/Таблица1[[#This Row],[План ДВН, чел.]]*100,1) -> 
A198: Октябрь | B198: ДВН | C198: ЦРБ Бабынинского района | D198: 0 | E198: 0 | F198: 0 | G198: =Таблица1[[#This Row],[Оплачено случаев]]-Таблица1[[#This Row],[План ДВН, чел.]] -> 0 | H198: =ROUND(Таблица1[[#This Row],[Оплачено случаев]]/Таблица1[[#This Row],[План ДВН, чел.]]*100,1) -> 
A199: Октябрь | B199: ДВН | C199: ЦРБ Боровского района | D199: 0 | E199: 0 | F199: 0 | G199: =Таблица1[[#This Row],[Оплачено случаев]]-Таблица1[[#This Row],[План ДВН, чел.]] -> 0 | H199: =ROUND(Таблица1[[#This Row],[Оплачено случаев]]/Таблица1[[#This Row],[План ДВН, чел.]]*100,1) -> 
A200: Октябрь | B200: ДВН | C200: ЦРБ Жуковского района | D200: 0 | E200: 0 | F200: 0 | G200: =Таблица1[[#This Row],[Оплачено случаев]]-Таблица1[[#This Row],[План ДВН, чел.]] -> 0 | H200: =ROUND(Таблица1[[#This Row],[Оплачено случаев]]/Таблица1[[#This Row],[План ДВН, чел.]]*100,1) -> 
... 43 more rows

Sheet Все МО (hidden)
A1: Месяц | B1: Март
A3: Названия строк | B3: Оплачено случаев | C3: План ДВН, чел.
A4: МСЧ № 2 г. Калуги | B4: 0 | C4: 1
A5: МСЧ МВД | B5: 0 | C5: 0
A6: ЦРБ Бабынинского района | B6: 4 | C6: 30
A7: ЦМБ № 2 | B7: 21 | C7: 541
A8: ЧУЗ "Больница "РЖД - Медицина" | B8: 40 | C8: 10
A9: ГП "Город Кременки" | B9: 45 | C9: 50
A10: МСЧ № 1 г. Калуги | B10: 65 | C10: 10
A11: ЦМБ № 4 | B11: 137 | C11: 125
A12: ЦМБ № 3 | B12: 160 | C12: 131
A13: ЦРБ Тарусского района | B13: 232 | C13: 92
A14: ЦМБ № 5 | B14: 246 | C14: 246
A15: ЦРБ Малоярославецкого района | B15: 296 | C15: 150
A16: ЦМБ № 1 | B16: 310 | C16: 277
A17: ЦРБ Жуковского района | B17: 312 | C17: 240
A18: ЦРБ Боровского района | B18: 397 | C18: 319
A19: КБ № 8 ФМБА | B19: 749 | C19: 825
A20: КГКБ № 4 | B20: 980 | C20: 745
A21: ЦМБ № 6 | B21: 1302 | C21: 500
A22: Городская поликлиника | B22: 1338 | C22: 630
A23: КГБ № 5 | B23: 1405 | C23: 1350
A24: Общий итог | B24: 8039 | C24: 6272

Sheet 10 лучших (hidden)
A1: Месяц | B1: Март
A3: Названия строк | B3: % выполнения
A4: ЦМБ № 3 | B4: 122.1
A5: ЦРБ Боровского района | B5: 124.5
A6: ЦРБ Жуковского района | B6: 130
A7: КГКБ № 4 | B7: 131.5
A8: ЦРБ Малоярославецкого района | B8: 197.3
A9: Городская поликлиника | B9: 212.4
A10: ЦРБ Тарусского района | B10: 252.2
A11: ЦМБ № 6 | B11: 260.4
A12: ЧУЗ "Больница "РЖД - Медицина" | B12: 400
A13: МСЧ № 1 г. Калуги | B13: 650
A14: Общий итог | B14: 248.04

Sheet 10 худших (hidden)
A1: Месяц | B1: Март
A3: Названия строк | B3: % выполнения
A4: МСЧ № 2 г. Калуги | B4: 0
A5: ЦМБ № 2 | B5: 3.9
A6: ЦРБ Бабынинского района | B6: 13.3
A7: ГП "Город Кременки" | B7: 90
A8: КБ № 8 ФМБА | B8: 90.8
A9: ЦМБ № 5 | B9: 100
A10: КГБ № 5 | B10: 104.1
A11: ЦМБ № 4 | B11: 109.6
A12: ЦМБ № 1 | B12: 111.9
A13: ЦМБ № 3 | B13: 122.1
A14: Общий итог | B14: 74.57

Sheet Помесячно по МО (hidden)
A1: Выполнение ДВН
A3: Названия строк | B3: Оплачено случаев | C3: План ДВН, чел. | D3: Отклонение
A4: Январь | B4: 1299 | C4: 606 | D4: 693
A5: Февраль | B5: 1854 | C5: 630 | D5: 1224
A6: Март | B6: 1338 | C6: 630 | D6: 708
A7: Апрель | B7: 0 | C7: 0 | D7: 0
A8: Май | B8: 0 | C8: 0 | D8: 0
A9: Июнь | B9: 0 | C9: 0 | D9: 0
A10: Июль | B10: 0 | C10: 0 | D10: 0
A11: Август | B11: 0 | C11: 0 | D11: 0
A12: Сентябрь | B12: 0 | C12: 0 | D12: 0
A13: Октябрь | B13: 0 | C13: 0 | D13: 0
A14: Ноябрь | B14: 0 | C14: 0 | D14: 0
A15: Декабрь | B15: 0 | C15: 0 | D15: 0
A16: Общий итог | B16: 4491 | C16: 1866 | D16: 2625

Sheet Дашборд ДВН
A2: УГЛУБЛЕННАЯ ДИСПАНСЕРИЗАЦИЯ НАСЕЛЕНИЯ В 2023 ГОДУ
